Workbook

Sheet Pensione
A1: DIGITARE SOLO I DATI COMPRESI NELLE CELLE BORDATE CON LINEA DOPPIA (Il calcolo non tiene conto della Nota Operativa Inpdap n. 26 del 13.06.2008: anzianità contributiva > 40 anni) | Q1: anno cess. | R1: =YEAR(DATE(YEAR($O$2),MONTH($O$2)-$N$22,1)) -> 2012 | S1: aliq.norm.prec. | T1: =INDEX($T$3:$T$43,MATCH($M$22,$S$3:$S$43))+IF($M$22=40,0,(INDEX($T$3:$T$43,MATCH($M$22+1,$S$3:$S$43,0))-INDEX($T$3:$T$43,MATCH($M$22,$S$3:$S$43,0)))/12*$N$22) -> 0.8 | U1: aliq.norm.succ. | V1: =INDEX($V$3:$V$43,MATCH($M$22,$S$3:$S$43,0))+IF($M$22=40,0,(INDEX($V$3:$V$43,MATCH($M$22+1,$S$3:$S$43,0))-INDEX($V$3:$V$43,MATCH($M$22,$S$3:$S$43,0)))/12*$N$22) -> 0.834
A2: Attenzione! Verificare comp.accessorie | G2: Pinco Pallino | L2: Data di cessazione: | O2: =MAX($D$6:$D$12,$D$16:$D$19,$D$23:$D$26) -> 2012-02-29 | S2: anni contr. | T2: ali.prec. | U2: anni | V2: aliq.calc. | W2: aliq.da appl.
A3: Calcolo Servizi Utili fino al 31.12.92 | H3: Calcolo aliquota di pensione Servizi Utili al 31.12.92 | S3: =tabprev!A3 -> 0 | T3: =tabprev!B3 -> 0 | U3: =YEAR($C$6) -> 1971 | V3: =IF(S3=0,0,IF(U3<1995,T3,V2+0.02)) -> 0 | W3: =MIN(T3,V3) -> 0
A4: mansione | C4: dal: | D4: al: | E4: anni: | F4: mesi: | G4: giorni: | M4: anni: | N4: mesi: | O4: aliquota (b) | S4: =tabprev!A4 -> 1 | T4: =tabprev!B4 -> 0.0233 | U4: =U3+1 -> 1972 | V4: =IF(S4=0,0,IF(U4<1995,T4,V3+0.02)) -> 0.0233 | W4: =MIN(T4,V4) -> 0.0233
A5: figurativo | C5: 1969-06-08 | D5: 1970-09-06 | E5: =IF(AND(C5<>"",D5<>""),FLOOR((DAYS360(C5,D5+1,TRUE))/360,1),0) -> 1 | F5: =IF(AND(C5<>"",D5<>""),FLOOR(((DAYS360(C5,D5+1,TRUE))-E5*360)/30,1),0) -> 2 | G5: =IF(AND(C5<>"",D5<>""),(DAYS360(C5,D5+1,TRUE))-E5*360-F5*30,0) -> 29 | H5: Servizi utili fino al 31.12.92 in anni e mesi | M5: =IF(E13="errore",0,E13) -> 23 | N5: =IF(E13="errore",0,ROUND(SUM(F13*30+G13-1)/30,0)) -> 2 | O5: =INDEX($W$3:$W$43,MATCH($M5,$S$3:$S$43,0))+(INDEX($W$3:$W$43,MATCH($M5+1,$S$3:$S$43,0))-INDEX($W$3:$W$43,MATCH($M5,$S$3:$S$43,0)))/12*N5 -> 0.497 | S5: =tabprev!A5 -> 2 | T5: =tabprev!B5 -> 0.0467 | U5: =U4+1 -> 1973 | V5: =IF(S5=0,0,IF(U5<1995,T5,V4+0.02)) -> 0.0467 | W5: =MIN(T5,V5) -> 0.0467
C6: 1971-01-15 | D6: 1974-06-25 | E6: 3 | F6: 5 | G6: 11 | H6: Calcolo Quota A pensione annua (anzian.al 31.12.92) | S6: =tabprev!A6 -> 3 | T6: =tabprev!B6 -> 0.07 | U6: 1974 | V6: 0.07 | W6: 0.07
C7: 1974-06-26 | D7: 1992-12-31 | E7: 18 | F7: 6 | G7: 5 | H7: ="- Stipendio annuo lordo alla data di cessaz." -> - Stipendio annuo lordo alla data di cessaz. | M7: =$F$34 -> 22100 | N7: ="+" -> + | S7: =tabprev!A7 -> 4 | T7: =tabprev!B7 -> 0.0933 | U7: 1975 | V7: 0.0933 | W7: 0.0933
E8: 0 | F8: 0 | G8: 0 | H8: ="- Retribuz. individ. anzianità alla data di cessazione" -> - Retribuz. individ. anzianità alla data di cessazione | M8: =$G$34 -> 2000 | N8: + | S8: =tabprev!A8 -> 5 | T8: =tabprev!B8 -> 0.1167 | U8: 1976 | V8: 0.1167 | W8: 0.1167
E9: 0 | F9: 0 | G9: 0 | H9: ="- Assegno pers. ex Agensud alla data di cessazione" -> - Assegno pers. ex Agensud alla data di cessazione | M9: =$H$34 -> 0 | N9: + | S9: =tabprev!A9 -> 6 | T9: =tabprev!B9 -> 0.14 | U9: 1977 | V9: 0.14 | W9: 0.14
E10: 0 | F10: 0 | G10: 0 | H10: ="- Assegno pers. L. 239/04 alla data di cessazione" -> - Assegno pers. L. 239/04 alla data di cessazione | M10: =$I$34 -> 300 | N10: = | S10: =tabprev!A10 -> 7 | T10: =tabprev!B10 -> 0.1633 | U10: 1978 | V10: 0.1633 | W10: 0.1633
E11: 0 | F11: 0 | G11: 0 | H11: ="- Incremento voci precedenti del 18%" -> - Incremento voci precedenti del 18% | M11: =18%*SUM(M7:M10) -> 4392 | N11: + | S11: =tabprev!A11 -> 8 | T11: =tabprev!B11 -> 0.1867 | U11: 1979 | V11: 0.1867 | W11: 0.1867
E12: 0 | F12: 0 | G12: 0 | H12: ="- I.I.S. annua alla data di cessazione" -> - I.I.S. annua alla data di cessazione | M12: =$K$34 -> 6641.4 | N12: + | S12: =tabprev!A12 -> 9 | T12: =tabprev!B12 -> 0.21 | U12: 1980 | V12: 0.21 | W12: 0.21
A13: Totale Servizi utili al 31.12.92 | E13: =SUM(SUM($E$5:$E$12),INT(INT(SUM($F$5:$F$12)+INT(SUM($G$5:$G$12)/30))/12)) -> 23 | F13: =MOD(SUM(SUM($F$5:$F$12),INT(SUM($G$5:$G$12)/30)),12) -> 2 | G13: =MOD(SUM($G$5:$G$12),30) -> 15 | H13: ="- Indennità di amministraz. alla data di cessazione" -> - Indennità di amministraz. alla data di cessazione | N13: + | S13: =tabprev!A13 -> 10 | T13: =tabprev!B13 -> 0.2333 | U13: 1981 | V13: 0.2333 | W13: 0.2333
A14: Calcolo Servizi Utili dal 1.1.93 fino al 31.12.95 | H14: Base pensionabile (Totale) | M14: =SUM(M$7:M$13) -> 35433.4 | N14: ="x" -> x | S14: =tabprev!A14 -> 11 | T14: =tabprev!B14 -> 0.2567 | U14: 1982 | V14: 0.2567 | W14: 0.2567
A15: mansione | C15: dal: | D15: al: | E15: anni: | F15: mesi: | G15: giorni: | H15: Aliquota di pensione al 31.12.92 | M15: =O5 -> 0.497 | N15: ="=" -> = | S15: =tabprev!A15 -> 12 | T15: =tabprev!B15 -> 0.28 | U15: 1983 | V15: 0.28 | W15: 0.28
C16: 1993-01-01 | D16: 1993-10-12 | E16: =IF(AND(C16<>"",D16<>""),FLOOR((DAYS360(C16,D16+1,TRUE))/360,1),0) -> 0 | F16: =IF(AND(C16<>"",D16<>""),FLOOR(((DAYS360(C16,D16+1,TRUE))-E16*360)/30,1),0) -> 9 | G16: =IF(AND(C16<>"",D16<>""),(DAYS360(C16,D16+1,TRUE))-E16*360-F16*30,0) -> 12 | H16: Quota A di pensione annua | M16: =M14*M15 -> 17610.3998 | S16: =tabprev!A16 -> 13 | T16: =tabprev!B16 -> 0.3033 | U16: 1984 | V16: 0.3033 | W16: 0.3033
C17: 1993-10-13 | D17: 1995-12-31 | E17: =IF(AND(C17<>"",D17<>""),FLOOR((DAYS360(C17+1,D17,TRUE))/360,1),0) -> 2 | F17: =IF(AND(C17<>"",D17<>""),FLOOR(((DAYS360(C17,D17+1,TRUE))-E17*360)/30,1),0) -> 2 | G17: =IF(AND(C17<>"",D17<>""),(DAYS360(C17,D17+1,TRUE))-E17*360-F17*30,0) -> 18 | M17: anni: | N17: mesi: | O17: giorni: | S17: =tabprev!A17 -> 14 | T17: =tabprev!B17 -> 0.3267 | U17: 1985 | V17: 0.3267 | W17: 0.3267
E18: =IF(AND(C18<>"",D18<>""),FLOOR((DAYS360(C18+1,D18,TRUE))/360,1),0) -> 0 | F18: =IF(AND(C18<>"",D18<>""),FLOOR(((DAYS360(C18,D18+1,TRUE))-E18*360)/30,1),0) -> 0 | G18: =IF(AND(C18<>"",D18<>""),(DAYS360(C18,D18+1,TRUE))-E18*360-F18*30,0) -> 0 | H18: Servizio utile dal 1.1.93 alla data di cessazione | M18: =SUM($E$20,$E$27,INT(SUM(INT(SUM($G$20,$G$27)/30),$F$20,$F$27)/12)) -> 19 | N18: =MOD(SUM($F$20,$F$27,INT(SUM($G$20,$G$27)/30)),12) -> 2 | O18: =MOD(SUM($G$20,$G$27),30) -> 0 | S18: =tabprev!A18 -> 15 | T18: =tabprev!B18 -> 0.35 | U18: 1986 | V18: 0.35 | W18: 0.35
E19: =IF(AND(C19<>"",D19<>""),FLOOR((DAYS360(C19+1,D19,TRUE))/360,1),0) -> 0 | F19: =IF(AND(C19<>"",D19<>""),FLOOR(((DAYS360(C19,D19+1,TRUE))-E19*360)/30,1),0) -> 0 | G19: =IF(AND(C19<>"",D19<>""),(DAYS360(C19,D19+1,TRUE))-E19*360-F19*30,0) -> 0 | H19: Servizio utile alla data di cessazione | M19: =MIN(40,SUM($E$13,$M$18,INT(INT(SUM($F$13,$N$18)+INT(SUM($G$13,$O$18)/30))/12))) -> 40 | N19: =IF(M19=40,0,MOD(SUM($F$13,$N$18,INT(SUM($G$13,$O$18)/30)),12)) -> 0 | O19: =IF(M19=40,0,MOD(SUM($G$13,$O$18),30)) -> 0 | S19: =tabprev!A19 -> 16 | T19: =tabprev!B19 -> 0.368 | U19: 1987 | V19: 0.368 | W19: 0.368
A20: Tot. Servizi utili dal 1.1.93 al 31.12.95 | E20: =SUM(SUM($E$16:$E$19),INT(INT(SUM($F$16:$F$19)+INT(SUM($G$16:$G$19)/30))/12)) -> 3 | F20: =MOD(SUM(SUM($F$16:$F$19),INT(SUM($G$16:$G$19)/30)),12) -> 0 | G20: =MOD(SUM($G$16:$G$19),30) -> 0 | H20: Calcolo aliquota di pensione alla data di cessazione | S20: =tabprev!A20 -> 17 | T20: =tabprev!B20 -> 0.386 | U20: 1988 | V20: 0.386 | W20: 0.386
A21: Calcolo Servizi Utlili dal 1.1.96 fino alla data di cessazione | M21: anni: | N21: mesi: | O21: aliquota (a) | S21: =tabprev!A21 -> 18 | T21: =tabprev!B21 -> 0.404 | U21: 1989 | V21: 0.404 | W21: 0.404
A22: mansione | C22: dal: | D22: al: | E22: anni: | F22: mesi: | G22: giorni: | M22: =SUM($M$19,INT(ROUND(SUM($N$19*30+$O$19)/30,0)/12)) -> 40 | N22: =MOD(ROUND(SUM($N$19*30+$O$19-1)/30,0),12) -> 0 | O22: =MIN($T$1,$V$1) -> 0.8 | S22: =tabprev!A22 -> 19 | T22: =tabprev!B22 -> 0.422 | U22: 1990 | V22: 0.422 | W22: 0.422
C23: 1996-01-01 | D23: 2012-02-29 | E23: =IF(AND(C23<>"",D23<>""),FLOOR((DAYS360(C23,D23+1,TRUE))/360,1),0) -> 16 | F23: =IF(AND(C23<>"",D23<>""),FLOOR(((DAYS360(C23,D23+1,TRUE))-E23*360)/30,1),0) -> 2 | G23: =IF(AND(C23<>"",D23<>""),(DAYS360(C23,D23+1,TRUE))-E23*360-F23*30,0) -> 0 | H23: Calcolo aliquota differenza tra aliq.data cessaz. e aliq. al 31.12.92 | S23: =tabprev!A23 -> 20 | T23: =tabprev!B23 -> 0.44 | U23: 1991 | V23: 0.44 | W23: 0.44
E24: =IF(AND(C24<>"",D24<>""),FLOOR((DAYS360(C24,D24+1,TRUE))/360,1),0) -> 0 | F24: =IF(AND(C24<>"",D24<>""),FLOOR(((DAYS360(C24,D24+1,TRUE))-E24*360)/30,1),0) -> 0 | G24: =IF(AND(C24<>"",D24<>""),(DAYS360(C24,D24+1,TRUE))-E24*360-F24*30,0) -> 0 | H24: Diff.(dal 1.1.93 alla cessaz.) in anni e mesi (a - b) | M24: anni: | N24: mesi: | O24: aliquota | S24: =tabprev!A24 -> 21 | T24: =tabprev!B24 -> 0.458 | U24: 1992 | V24: 0.458 | W24: 0.458
E25: =IF(AND(C25<>"",D25<>""),FLOOR((DAYS360(C25,D25+1,TRUE))/360,1),0) -> 0 | F25: =IF(AND(C25<>"",D25<>""),FLOOR(((DAYS360(C25,D25+1,TRUE))-E25*360)/30,1),0) -> 0 | G25: =IF(AND(C25<>"",D25<>""),(DAYS360(C25,D25+1,TRUE))-E25*360-F25*30,0) -> 0 | M25: =INT(($M$22*12+$N$22-($M$5*12+$N$5))/12) -> 16 | N25: =MOD($N$22+$M$22*12-($N$5+$M$5*12),12) -> 10 | O25: =$O$22-$O$5 -> 0.303 | S25: =tabprev!A25 -> 22 | T25: =tabprev!B25 -> 0.476 | U25: 1993 | V25: 0.476 | W25: 0.476
E26: =IF(AND(C26<>"",D26<>""),FLOOR((DAYS360(C26,D26+1,TRUE))/360,1),0) -> 0 | F26: =IF(AND(C26<>"",D26<>""),FLOOR(((DAYS360(C26,D26+1,TRUE))-E26*360)/30,1),0) -> 0 | G26: =IF(AND(C26<>"",D26<>""),(DAYS360(C26,D26+1,TRUE))-E26*360-F26*30,0) -> 0 | H26: Calcolo periodo riferim. (dal 1.1.93 alla data di decorrenza della pensione) | S26: =tabprev!A26 -> 23 | T26: =tabprev!B26 -> 0.494 | U26: 1994 | V26: 0.494 | W26: 0.494
A27: Totale Serv.utili dal 1.1.96 alla data cess. | E27: =SUM(SUM($E$23:$E$26),INT(INT(SUM($F$23:$F$26)+INT(SUM($G$23:$G$26)/30))/12)) -> 16 | F27: =MOD(SUM(SUM($F$23:$F$26),INT(SUM($G$23:$G$26)/30)),12) -> 2 | G27: =MOD(SUM($G$23:$G$26),30) -> 0 | L27: dal: | M27: al: | N27: mesi: | S27: =tabprev!A27 -> 24 | T27: =tabprev!B27 -> 0.512 | U27: 1995 | V27: 0.514 | W27: 0.512
H28: Calcolo mesi dal 1.1.93 al 31.12.95 al 50% | L28: 1993-01-01 | M28: 1995-12-31 | N28: =ROUND(SUM($E$20*360,$F$20*30,$G$20)/30*50%,0) -> 18 | S28: =tabprev!A28 -> 25 | T28: =tabprev!B28 -> 0.53 | U28: 1996 | V28: 0.534 | W28: 0.53
H29: Calcolo mesi dal 1.1.96 alla data cess.al 66,6% | L29: 1996-01-01 | M29: =$O$2 -> 2012-02-29 | N29: =ROUND(SUM($E$27*360,$F$27*30,$G$27)/30*66.6%,0) -> 129 | S29: =tabprev!A29 -> 26 | T29: =tabprev!B29 -> 0.548 | U29: 1997 | V29: 0.554 | W29: 0.548
H30: Periodo di riferimento in mesi | N30: =MIN(120,SUM(N28:N29)) -> 120 | S30: =tabprev!A30 -> 27 | T30: =tabprev!B30 -> 0.566 | U30: 1998 | V30: 0.574 | W30: 0.566
A31: CALCOLO SOMMATORIA RETRIBUZIONI RIVALUTATE DEL PERIODO DI RIFERIMENTO Retribuz. dalla data di cessaz. in poi, a ritroso nel tempo, fino a raggiungere il n° di mesi del periodo di riferim. per il calcolo della quota B di pensione | S31: =tabprev!A31 -> 28 | T31: =tabprev!B31 -> 0.584 | U31: 1999 | V31: 0.594 | W31: 0.584
A32: (ogni riga deve riferirsi ad un solo anno. I periodi che si collocano a cavallo di più anni devono essere spezzati per anno) | S32: =tabprev!A32 -> 29 | T32: =tabprev!B32 -> 0.602 | U32: 2000 | V32: 0.614 | W32: 0.602
A33: dal | B33: al | C33: n° mesi | D33: somma cumulata mesi | E33: anno | F33: stip.annuo lordo e vac.contr. (c) | G33: retribuz. individ. anzianità (d) | H33: assegno pers. pensionabile (e) | I33: assegno personale L.239/04 (f) | J33: increm. 18% su c+d+e+f | K33: ind.int. spec. IIS | L33: comp. access. (indenn. ammin.) | M33: altri compensi accessori | N33: coeffic. rivalut. | O33: coeff. x increm. 1% | P33: imp.rival. x i mesi corrisp. soluzione 1 | S33: =tabprev!A33 -> 30 | T33: =tabprev!B33 -> 0.62 | U33: 2001 | V33: 0.634 | W33: 0.62 | X33: Retr. fisse e cont. secondo me | Y33: Retr.fisse e cont. secondo M.S.E. | Z33: Diff. Secondo me - secondo M.S.E.
A34: 2012-01-01 | B34: 2012-02-29 | C34: =ROUND((B34-A34)/30,0) -> 2 | D34: =IF(AND(A34="",B34=""),0,IF(ROUND(SUM($C$34:C34),0)<=$N$30,ROUND(SUM($C$34:C34),0),"oltre limite")) -> 2 | E34: =IF(AND(A34="",B34=""),0,IF(YEAR(A34)=YEAR(B34),YEAR(B34),"data err.")) -> 2012 | F34: 22100 | G34: 2000 | I34: 300 | J34: =IF(AND($A34="",$B34=""),0,IF(AND($Q33=0,$R33=0),SUM($F34:$I34)*18%,0)) -> 4392 | K34: 6641.4 | L34: 3930 | M34: 0 | N34: =IF(AND($A34="",$B34=""),0,IF(OR(YEAR($A34)=YEAR($O$2),YEAR($A34)=YEAR($O$2)-1),1,IF(AND($Q33=0,$R33=0),INDEX(tabprev!$D$3:$P$22,MATCH(YEAR($A34),tabprev!$C$3:$C$22,0),MATCH(YEAR($O$2),tabprev!$D$2:$P$2,0))))) -> 1 | O34: =IF(N34=1,1,IF(N34=0,0,O33+1%)) -> 1 | P34: =IF(AND($A34="",$B34=""),0,IF(AND($Q33=0,$R33=0),ROUND((SUM($F34:$I34,$K34)/12*$C34+MAX($J34/12*$C34,SUM($L34/12*$C34,$M34)))*$N34*$O34,2),0)) -> 5905.57 | Q34: =IF(AND($A34="",$B34=""),0,IF(ROUND(SUM($C34:$C$35),0)<=$N$30,0,1)) -> 0 | R34: =IF(AND($A34="",$B34=""),0,IF(YEAR($A34)=YEAR($B34),0,1)) -> 0 | S34: =tabprev!A34 -> 31 | T34: =tabprev!B34 -> 0.638 | U34: 2002 | V34: 0.654 | W34: 0.638 | X34: =SUM(F34:I34,K34) -> 31041.4 | Y34: 32230.92 | Z34: =X34-Y34 -> -1189.52
A35: 2011-01-01 | B35: 2011-12-31 | C35: =ROUND((B35-A35)/30,0) -> 12 | D35: =IF(AND(A35="",B35=""),0,IF(ROUND(SUM($C$34:C35),0)<=$N$30,ROUND(SUM($C$34:C35),0),"oltre limite")) -> 14 | E35: =IF(AND(A35="",B35=""),0,IF(YEAR(A35)=YEAR(B35),YEAR(B35),"data err.")) -> 2011 | F35: 22000 | G35: 2000 | I35: 300 | J35: 4374 | K35: 6641.4 | L35: 3930 | M35: 4000 | N35: =IF(AND($A35="",$B35=""),0,IF(OR(YEAR($A35)=YEAR($O$2),YEAR($A35)=YEAR($O$2)-1),1,IF(AND($Q34=0,$R34=0),INDEX(tabprev!$D$3:$P$22,MATCH(YEAR($A35),tabprev!$C$3:$C$22,0),MATCH(YEAR($O$2),tabprev!$D$2:$P$2,0))))) -> 1 | O35: =IF(N35=1,1,IF(N35=0,0,O34+1%)) -> 1 | P35: =IF(AND($A35="",$B35=""),0,IF(AND($Q34=0,$R34=0),ROUND((SUM($F35:$I35,$K35)/12*$C35+MAX($J35/12*$C35,SUM($L35/12*$C35,$M35)))*$N35*$O35,2),0)) -> 38871.4 | Q35: =IF(AND($A35="",$B35=""),0,IF(ROUND(SUM($C$35:$C35),0)<=$N$30,0,1)) -> 0 | R35: =IF(AND($A35="",$B35=""),0,IF(YEAR($A35)=YEAR($B35),0,1)) -> 0 | S35: =tabprev!A35 -> 32 | T35: =tabprev!B35 -> 0.656 | U35: 2003 | V35: 0.674 | W35: 0.656 | X35: 30941.4 | Y35: 32230.92 | Z35: =X35-Y35 -> -1289.52
A36: 2010-01-01 | B36: 2010-12-31 | C36: =ROUND((B36-A36)/30,0) -> 12 | D36: =IF(AND(A36="",B36=""),0,IF(ROUND(SUM($C$34:C36),0)<=$N$30,ROUND(SUM($C$34:C36),0),"oltre limite")) -> 26 | E36: =IF(AND(A36="",B36=""),0,IF(YEAR(A36)=YEAR(B36),YEAR(B36),"data err.")) -> 2010 | F36: 21100 | G36: 2000 | I36: 300 | J36: 4212 | K36: 6641.4 | L36: 3930 | M36: 5000 | N36: =IF(AND($A36="",$B36=""),0,IF(OR(YEAR($A36)=YEAR($O$2),YEAR($A36)=YEAR($O$2)-1),1,IF(AND($Q35=0,$R35=0),INDEX(tabprev!$D$3:$P$22,MATCH(YEAR($A36),tabprev!$C$3:$C$22,0),MATCH(YEAR($O$2),tabprev!$D$2:$P$2,0))))) -> 1.026948288 | O36: 1.01 | P36: 40421.83 | Q36: =IF(AND($A36="",$B36=""),0,IF(ROUND(SUM($C$35:$C36),0)<=$N$30,0,1)) -> 0 | R36: =IF(AND($A36="",$B36=""),0,IF(YEAR($A36)=YEAR($B36),0,1)) -> 0 | S36: =tabprev!A36 -> 33 | T36: =tabprev!B36 -> 0.674 | U36: 2004 | V36: 0.694 | W36: 0.674 | X36: 30041.4 | Y36: 32155.11 | Z36: -2113.71
A37: 2009-01-01 | B37: 2009-12-31 | C37: 12 | D37: =IF(AND(A37="",B37=""),0,IF(ROUND(SUM($C$34:C37),0)<=$N$30,ROUND(SUM($C$34:C37),0),"oltre limite")) -> 38 | E37: 2009 | F37: 20000 | G37: 2000 | I37: 300 | J37: 4014 | K37: 6641.4 | L37: 3930 | M37: 5000 | N37: =IF(AND($A37="",$B37=""),0,IF(OR(YEAR($A37)=YEAR($O$2),YEAR($A37)=YEAR($O$2)-1),1,IF(AND($Q36=0,$R36=0),INDEX(tabprev!$D$3:$P$22,MATCH(YEAR($A37),tabprev!$C$3:$C$22,0),MATCH(YEAR($O$2),tabprev!$D$2:$P$2,0))))) -> 1.043671355 | O37: 1.02 | P37: 40315.8 | Q37: =IF(AND($A37="",$B37=""),0,IF(ROUND(SUM($C$35:$C37),0)<=$N$30,0,1)) -> 0 | R37: 0 | S37: =tabprev!A37 -> 34 | T37: =tabprev!B37 -> 0.692 | U37: 2005 | V37: 0.714 | W37: 0.692 | X37: 28941.4 | Y37: 32014.32 | Z37: -3072.92
A38: 2008-01-01 | B38: 2008-12-31 | C38: 12 | D38: =IF(AND(A38="",B38=""),0,IF(ROUND(SUM($C$34:C38),0)<=$N$30,ROUND(SUM($C$34:C38),0),"oltre limite")) -> 50 | E38: 2008 | F38: 19000 | G38: 2000 | H38: 800 | I38: 300 | J38: 3978 | K38: 6641.4 | L38: 3085.51 | M38: 6000 | N38: =IF(AND($A38="",$B38=""),0,IF(OR(YEAR($A38)=YEAR($O$2),YEAR($A38)=YEAR($O$2)-1),1,IF(AND($Q37=0,$R37=0),INDEX(tabprev!$D$3:$P$22,MATCH(YEAR($A38),tabprev!$C$3:$C$22,0),MATCH(YEAR($O$2),tabprev!$D$2:$P$2,0))))) -> 1.050670641 | O38: 1.03 | P38: 40935.93 | Q38: =IF(AND($A38="",$B38=""),0,IF(ROUND(SUM($C$35:$C38),0)<=$N$30,0,1)) -> 0 | R38: 0 | S38: =tabprev!A38 -> 35 | T38: =tabprev!B38 -> 0.71 | U38: 2006 | V38: 0.734 | W38: 0.71 | X38: 28741.4 | Y38: 31776.48 | Z38: -3035.08
A39: 2007-01-01 | B39: 2007-12-31 | C39: 12 | D39: =IF(AND(A39="",B39=""),0,IF(ROUND(SUM($C$34:C39),0)<=$N$30,ROUND(SUM($C$34:C39),0),"oltre limite")) -> 62 | E39: 2007 | F39: 18000 | G39: 2000 | H39: 1000 | I39: 1190 | J39: 3994.2 | K39: 6641.4 | L39: 1854.0075 | M39: 6000 | N39: =IF(AND($A39="",$B39=""),0,IF(OR(YEAR($A39)=YEAR($O$2),YEAR($A39)=YEAR($O$2)-1),1,IF(AND($Q38=0,$R38=0),INDEX(tabprev!$D$3:$P$22,MATCH(YEAR($A39),tabprev!$C$3:$C$22,0),MATCH(YEAR($O$2),tabprev!$D$2:$P$2,0))))) -> 1.084615385 | O39: 1.04 | P39: 41381.14 | Q39: =IF(AND($A39="",$B39=""),0,IF(ROUND(SUM($C$35:$C39),0)<=$N$30,0,1)) -> 0 | R39: 0 | S39: =tabprev!A39 -> 36 | T39: =tabprev!B39 -> 0.728 | U39: 2007 | V39: 0.754 | W39: 0.728 | X39: 28831.4 | Y39: 30946.7 | Z39: -2115.3
A40: 2006-01-01 | B40: 2006-12-31 | C40: 12 | D40: =IF(AND(A40="",B40=""),0,IF(ROUND(SUM($C$34:C40),0)<=$N$30,ROUND(SUM($C$34:C40),0),"oltre limite")) -> 74 | E40: 2006 | F40: 17100 | G40: 2000 | H40: 2300 | I40: 1200 | J40: 4068 | K40: 6641.4 | L40: 556.48 | M40: 3000 | N40: =IF(AND($A40="",$B40=""),0,IF(OR(YEAR($A40)=YEAR($O$2),YEAR($A40)=YEAR($O$2)-1),1,IF(AND($Q39=0,$R39=0),INDEX(tabprev!$D$3:$P$22,MATCH(YEAR($A40),tabprev!$C$3:$C$22,0),MATCH(YEAR($O$2),tabprev!$D$2:$P$2,0))))) -> 1.103286385 | O40: 1.05 | P40: 38587.3 | Q40: =IF(AND($A40="",$B40=""),0,IF(ROUND(SUM($C$35:$C40),0)<=$N$30,0,1)) -> 0 | R40: 0 | S40: =tabprev!A40 -> 37 | T40: =tabprev!B40 -> 0.746 | U40: 2008 | V40: 0.774 | W40: 0.746 | X40: 29241.4 | Y40: 30949.32 | Z40: -1707.92
A41: 2005-01-01 | B41: 2005-12-31 | C41: 12 | D41: =IF(AND(A41="",B41=""),0,IF(ROUND(SUM($C$34:C41),0)<=$N$30,ROUND(SUM($C$34:C41),0),"oltre limite")) -> 86 | E41: 2005 | F41: 16000 | G41: 2000 | H41: 2600 | I41: 1200 | J41: 3924 | K41: 6641.4 | L41: 332.9516667 | M41: 3000 | N41: =IF(AND($A41="",$B41=""),0,IF(OR(YEAR($A41)=YEAR($O$2),YEAR($A41)=YEAR($O$2)-1),1,IF(AND($Q40=0,$R40=0),INDEX(tabprev!$D$3:$P$22,MATCH(YEAR($A41),tabprev!$C$3:$C$22,0),MATCH(YEAR($O$2),tabprev!$D$2:$P$2,0))))) -> 1.125299282 | O41: 1.06 | P41: 38606.01 | Q41: =IF(AND($A41="",$B41=""),0,IF(ROUND(SUM($C$35:$C41),0)<=$N$30,0,1)) -> 0 | R41: 0 | S41: =tabprev!A41 -> 38 | T41: =tabprev!B41 -> 0.764 | U41: 2009 | V41: 0.794 | W41: 0.764 | X41: 28441.4 | Y41: 30917.34 | Z41: -2475.94
A42: 2004-01-01 | B42: 2004-12-31 | C42: 12 | D42: =IF(AND(A42="",B42=""),0,IF(ROUND(SUM($C$34:C42),0)<=$N$30,ROUND(SUM($C$34:C42),0),"oltre limite")) -> 98 | E42: 2004 | F42: 16900 | G42: 2000 | H42: 2900 | I42: 800 | J42: 4068 | K42: 6641.4 | M42: 2000 | N42: =IF(AND($A42="",$B42=""),0,IF(OR(YEAR($A42)=YEAR($O$2),YEAR($A42)=YEAR($O$2)-1),1,IF(AND($Q41=0,$R41=0),INDEX(tabprev!$D$3:$P$22,MATCH(YEAR($A42),tabprev!$C$3:$C$22,0),MATCH(YEAR($O$2),tabprev!$D$2:$P$2,0))))) -> 1.144480519 | O42: =IF(N42=1,1,IF(N42=0,0,O41+1%)) -> 1.07 | P42: 40790.5 | Q42: =IF(AND($A42="",$B42=""),0,IF(ROUND(SUM($C$35:$C42),0)<=$N$30,0,1)) -> 0 | R42: 0 | S42: =tabprev!A42 -> 39 | T42: =tabprev!B42 -> 0.782 | U42: 2010 | V42: 0.814 | W42: 0.782 | X42: 29241.4 | Y42: 30565.56 | Z42: -1324.16
A43: 2003-01-01 | B43: 2003-12-31 | C43: 12 | D43: =IF(AND(A43="",B43=""),0,IF(ROUND(SUM($C$34:C43),0)<=$N$30,ROUND(SUM($C$34:C43),0),"oltre limite")) -> 110 | E43: 2003 | F43: 16000 | G43: 2000 | H43: 3000 | J43: 3780 | K43: 6641.4 | M43: 2000 | N43: =IF(AND($A43="",$B43=""),0,IF(OR(YEAR($A43)=YEAR($O$2),YEAR($A43)=YEAR($O$2)-1),1,IF(AND($Q42=0,$R42=0),INDEX(tabprev!$D$3:$P$22,MATCH(YEAR($A43),tabprev!$C$3:$C$22,0),MATCH(YEAR($O$2),tabprev!$D$2:$P$2,0))))) -> 1.167218543 | O43: 1.08 | P43: 39609.69 | Q43: =IF(AND($A43="",$B43=""),0,IF(ROUND(SUM($C$35:$C43),0)<=$N$30,0,1)) -> 0 | R43: 0 | S43: =tabprev!A43 -> 40 | T43: =tabprev!B43 -> 0.8 | U43: =U42+1 -> 2011 | V43: =IF(S43=0,0,IF(U43<1995,T43,V42+0.02)) -> 0.834 | W43: =MIN(T43,V43) -> 0.8 | X43: 27641.4 | Y43: 29671.8 | Z43: -2030.4
A44: 2002-03-01 | B44: 2002-12-31 | C44: 10 | D44: =IF(AND(A44="",B44=""),0,IF(ROUND(SUM($C$34:C44),0)<=$N$30,ROUND(SUM($C$34:C44),0),"oltre limite")) -> 120 | E44: 2002 | F44: 15000 | G44: 2000 | H44: 4000 | J44: 3780 | K44: 6641.4 | M44: 2500 | N44: =IF(AND($A44="",$B44=""),0,IF(OR(YEAR($A44)=YEAR($O$2),YEAR($A44)=YEAR($O$2)-1),1,IF(AND($Q43=0,$R43=0),INDEX(tabprev!$D$3:$P$22,MATCH(YEAR($A44),tabprev!$C$3:$C$22,0),MATCH(YEAR($O$2),tabprev!$D$2:$P$2,0))))) -> 1.195928753 | O44: 1.09 | P44: 34133.13 | Q44: =IF(AND($A44="",$B44=""),0,IF(ROUND(SUM($C$35:$C44),0)<=$N$30,0,1)) -> 0 | R44: 0 | X44: 27641.4 | Y44: 29671.8 | Z44: -2030.4
C45: 0 | D45: =IF(AND(A45="",B45=""),0,IF(ROUND(SUM($C$34:C45),0)<=$N$30,ROUND(SUM($C$34:C45),0),"oltre limite")) -> 0 | E45: 0 | J45: 0 | M45: 0 | N45: =IF(AND($A45="",$B45=""),0,IF(OR(YEAR($A45)=YEAR($O$2),YEAR($A45)=YEAR($O$2)-1),1,IF(AND($Q44=0,$R44=0),INDEX(tabprev!$D$3:$P$22,MATCH(YEAR($A45),tabprev!$C$3:$C$22,0),MATCH(YEAR($O$2),tabprev!$D$2:$P$2,0))))) -> 0 | O45: 0 | P45: 0 | Q45: =IF(AND($A45="",$B45=""),0,IF(ROUND(SUM($C$35:$C45),0)<=$N$30,0,1)) -> 0 | R45: 0 | X45: 0
C46: 0 | D46: =IF(AND(A46="",B46=""),0,IF(ROUND(SUM($C$34:C46),0)<=$N$30,ROUND(SUM($C$34:C46),0),"oltre limite")) -> 0 | E46: 0 | J46: 0 | M46: 0 | N46: =IF(AND($A46="",$B46=""),0,IF(OR(YEAR($A46)=YEAR($O$2),YEAR($A46)=YEAR($O$2)-1),1,IF(AND($Q45=0,$R45=0),INDEX(tabprev!$D$3:$P$22,MATCH(YEAR($A46),tabprev!$C$3:$C$22,0),MATCH(YEAR($O$2),tabprev!$D$2:$P$2,0))))) -> 0 | O46: 0 | P46: 0 | Q46: =IF(AND($A46="",$B46=""),0,IF(ROUND(SUM($C$35:$C46),0)<=$N$30,0,1)) -> 0 | R46: 0 | X46: 0
C47: 0 | D47: =IF(AND(A47="",B47=""),0,IF(ROUND(SUM($C$34:C47),0)<=$N$30,ROUND(SUM($C$34:C47),0),"oltre limite")) -> 0 | E47: 0 | J47: 0 | M47: 0 | N47: =IF(AND($A47="",$B47=""),0,IF(OR(YEAR($A47)=YEAR($O$2),YEAR($A47)=YEAR($O$2)-1),1,IF(AND($Q46=0,$R46=0),INDEX(tabprev!$D$3:$P$22,MATCH(YEAR($A47),tabprev!$C$3:$C$22,0),MATCH(YEAR($O$2),tabprev!$D$2:$P$2,0))))) -> 0 | O47: 0 | P47: 0 | Q47: =IF(AND($A47="",$B47=""),0,IF(ROUND(SUM($C$35:$C47),0)<=$N$30,0,1)) -> 0 | R47: 0 | X47: 0
C48: 0 | D48: =IF(AND(A48="",B48=""),0,IF(ROUND(SUM($C$34:C48),0)<=$N$30,ROUND(SUM($C$34:C48),0),"oltre limite")) -> 0 | E48: 0 | J48: 0 | M48: 0 | N48: =IF(AND($A48="",$B48=""),0,IF(OR(YEAR($A48)=YEAR($O$2),YEAR($A48)=YEAR($O$2)-1),1,IF(AND($Q47=0,$R47=0),INDEX(tabprev!$D$3:$P$22,MATCH(YEAR($A48),tabprev!$C$3:$C$22,0),MATCH(YEAR($O$2),tabprev!$D$2:$P$2,0))))) -> 0 | O48: 0 | P48: 0 | Q48: =IF(AND($A48="",$B48=""),0,IF(ROUND(SUM($C$35:$C48),0)<=$N$30,0,1)) -> 0 | R48: 0 | X48: 0
C49: =ROUND((B49-A49)/30,0) -> 0 | D49: =IF(AND(A49="",B49=""),0,IF(ROUND(SUM($C$34:C49),0)<=$N$30,ROUND(SUM($C$34:C49),0),"oltre limite")) -> 0 | E49: =IF(AND(A49="",B49=""),0,IF(YEAR(A49)=YEAR(B49),YEAR(B49),"data err.")) -> 0 | J49: 0 | M49: 0 | N49: =IF(AND($A49="",$B49=""),0,IF(OR(YEAR($A49)=YEAR($O$2),YEAR($A49)=YEAR($O$2)-1),1,IF(AND($Q48=0,$R48=0),INDEX(tabprev!$D$3:$P$22,MATCH(YEAR($A49),tabprev!$C$3:$C$22,0),MATCH(YEAR($O$2),tabprev!$D$2:$P$2,0))))) -> 0 | O49: =IF(N49=1,1,IF(N49=0,0,O48+1%)) -> 0 | P49: =IF(AND($A49="",$B49=""),0,IF(AND($Q48=0,$R48=0),ROUND((SUM($F49:$I49,$K49)/12*$C49+MAX($J49/12*$C49,SUM($L49/12*$C49,$M49/12*$C49)))*$N49*$O49,2),0)) -> 0 | Q49: =IF(AND($A49="",$B49=""),0,IF(ROUND(SUM($C$35:$C49),0)<=$N$30,0,1)) -> 0 | R49: 0 | X49: 0
A50: TOTALE MESI | C50: =SUM(C$34:C49) -> 120 | J50: TOTALE IMPORTI RIVALUTATI | P50: =SUM($P$34:$P49) -> 399558.3
A51: Calcolo retribuzione media annua | G51: Calcolo quota B di pensione annua | K51: Calcolo pensione annua | O51: Pensione x 12 mensilità + 13ma | W51: =SUM($F49,$K49,$L49,$M49) -> 0
A52: Totale retrib.periodo riferim., rival.: | E52: =IF(AND($Q$49=0,$R$49=0),IF(MAX($D$34:$D$49)=$E$53,$P$50,0),0) -> 399558.3 | G52: Retribuz. media annua | I52: =E55 -> 39955.83 | J52: ="x" -> x | K52: Quota A | M52: =M$16 -> 17610.3998 | W52: =SUM($F50,$J50,$K50,$M50) -> 0
A53: N° mesi periodo di riferimento | E53: =$N$30 -> 120 | G53: aliquota pensione dal 1.1.93 alla data cessaz. | I53: =$O$25 -> 0.303 | J53: ="=" -> = | K53: Quota B | M53: =$I$55 -> 12106.61649
A54: Retribuzione media mensile | E54: =IF(AND($Q$49=0,$R$49=0),IF($N$30<>0,E52/$N$30,0),0) -> 3329.6525 | K54: Pens.lorda | M54: =SUM(M$52:M$53) -> 29717.01629 | O54: =$M54/12 -> 2476.418024
A55: Retribuzione media annua | E55: =E$54*12 -> 39955.83 | G55: Quota B di pensione annua | I55: =I52*I53 -> 12106.61649 | K55: Pensione netta | M55: ='ire 2012'!$H$7 -> 22728.85508 | O55: =$M55/12 -> 1894.071257

Sheet Pensione nota op.
A1: DIGITARE SOLO I DATI COMPRESI NELLE CELLE BORDATE CON LINEA DOPPIA (Il calcolo tiene conto della Nota Operativa Inpdap n. 26 del 13.06.2008: anzianità contributiva > 40 anni) | Q1: anno cess. | R1: =YEAR(DATE(YEAR($O$2),MONTH($O$2)-$N$22,1)) -> 2012 | S1: aliq.norm.prec. | T1: =INDEX($T$3:$T$43,MATCH($M$22,$S$3:$S$43))+IF($M$22=40,0,(INDEX($T$3:$T$43,MATCH($M$22+1,$S$3:$S$43,0))-INDEX($T$3:$T$43,MATCH($M$22,$S$3:$S$43,0)))/12*$N$22) -> 0.8 | U1: aliq.norm.succ. | V1: =INDEX($V$3:$V$43,MATCH($M$22,$S$3:$S$43,0))+IF($M$22=40,0,(INDEX($V$3:$V$43,MATCH($M$22+1,$S$3:$S$43,0))-INDEX($V$3:$V$43,MATCH($M$22,$S$3:$S$43,0)))/12*$N$22) -> 0.834
A2: Attenzione! Verificare comp.accessorie | G2: Pinco Pallino | L2: Data di cessazione: | O2: =MAX($D$6:$D$12,$D$16:$D$19,$D$23:$D$26) -> 2012-02-29 | S2: anni contr. | T2: ali.prec. | U2: anni | V2: aliq.calc. | W2: aliq.da appl.
A3: Calcolo Servizi Utili fino al 31.12.92 | H3: Calcolo aliquota di pensione Servizi Utili al 31.12.92 | S3: =tabprev!A3 -> 0 | T3: =tabprev!B3 -> 0 | U3: =YEAR($C$6) -> 1971 | V3: =IF(S3=0,0,IF(U3<1995,T3,V2+0.02)) -> 0 | W3: =MIN(T3,V3) -> 0
A4: mansione | C4: dal: | D4: al: | E4: anni: | F4: mesi: | G4: giorni: | M4: anni: | N4: mesi: | O4: aliquota (b) | S4: =tabprev!A4 -> 1 | T4: =tabprev!B4 -> 0.0233 | U4: =U3+1 -> 1972 | V4: 0.0233 | W4: 0.0233
A5: figurativo | C5: 1969-06-08 | D5: 1970-09-06 | E5: =IF(AND(C5<>"",D5<>""),FLOOR((DAYS360(C5,D5+1,TRUE))/360,1),0) -> 1 | F5: =IF(AND(C5<>"",D5<>""),FLOOR(((DAYS360(C5,D5+1,TRUE))-E5*360)/30,1),0) -> 2 | G5: =IF(AND(C5<>"",D5<>""),(DAYS360(C5,D5+1,TRUE))-E5*360-F5*30,0) -> 29 | H5: Servizi utili da considerare al al 31.12.92 in anni e mesi | M5: =IF(E13="errore",0,40-INT((40*12-($M$18*12+$N$18))/12)) -> 20 | N5: =IF(E13="errore",0,MOD(40*12-($N$18+$M$18*12),12)) -> 10 | O5: =O22-O25 -> 0.375 | S5: =tabprev!A5 -> 2 | T5: =tabprev!B5 -> 0.0467 | U5: 1973 | V5: 0.0467 | W5: 0.0467
C6: 1971-01-15 | D6: 1974-06-25 | E6: 3 | F6: 5 | G6: 11 | H6: Calcolo Quota A pensione annua (anzian.al 31.12.92) | S6: =tabprev!A6 -> 3 | T6: =tabprev!B6 -> 0.07 | U6: 1974 | V6: 0.07 | W6: 0.07
C7: 1974-06-26 | D7: 1992-12-31 | E7: 18 | F7: 6 | G7: 5 | H7: ="- Stipendio annuo lordo alla data di cessaz." -> - Stipendio annuo lordo alla data di cessaz. | M7: =$F$34 -> 22100 | N7: ="+" -> + | S7: =tabprev!A7 -> 4 | T7: =tabprev!B7 -> 0.0933 | U7: 1975 | V7: 0.0933 | W7: 0.0933
E8: 0 | F8: 0 | G8: 0 | H8: ="- Retribuz. individ. anzianità alla data di cessazione" -> - Retribuz. individ. anzianità alla data di cessazione | M8: =$G$34 -> 2000 | N8: ="+" -> + | S8: =tabprev!A8 -> 5 | T8: =tabprev!B8 -> 0.1167 | U8: 1976 | V8: 0.1167 | W8: 0.1167
E9: 0 | F9: 0 | G9: 0 | H9: ="- Assegno pers. ex Agensud alla data di cessazione" -> - Assegno pers. ex Agensud alla data di cessazione | M9: =$H$34 -> 0 | N9: ="+" -> + | S9: =tabprev!A9 -> 6 | T9: =tabprev!B9 -> 0.14 | U9: 1977 | V9: 0.14 | W9: 0.14
E10: 0 | F10: 0 | G10: 0 | H10: ="- Assegno pers. L. 239/04 alla data di cessazione" -> - Assegno pers. L. 239/04 alla data di cessazione | M10: =$I$34 -> 300 | N10: = | S10: =tabprev!A10 -> 7 | T10: =tabprev!B10 -> 0.1633 | U10: 1978 | V10: 0.1633 | W10: 0.1633
E11: 0 | F11: 0 | G11: 0 | H11: ="- Incremento voci precedenti del 18%" -> - Incremento voci precedenti del 18% | M11: =18%*SUM(M7:M10) -> 4392 | N11: ="+" -> + | S11: =tabprev!A11 -> 8 | T11: =tabprev!B11 -> 0.1867 | U11: 1979 | V11: 0.1867 | W11: 0.1867
E12: 0 | F12: 0 | G12: 0 | H12: ="- I.I.S. annua alla data di cessazione" -> - I.I.S. annua alla data di cessazione | M12: =$K$34 -> 6641.4 | N12: ="+" -> + | S12: =tabprev!A12 -> 9 | T12: =tabprev!B12 -> 0.21 | U12: 1980 | V12: 0.21 | W12: 0.21
A13: Totale Servizi utili al 31.12.92 | E13: =SUM(SUM($E$5:$E$12),INT(INT(SUM($F$5:$F$12)+INT(SUM($G$5:$G$12)/30))/12)) -> 23 | F13: =MOD(SUM(SUM($F$5:$F$12),INT(SUM($G$5:$G$12)/30)),12) -> 2 | G13: =MOD(SUM($G$5:$G$12),30) -> 15 | H13: ="- Indennità di amministraz. alla data di cessazione" -> - Indennità di amministraz. alla data di cessazione | N13: ="+" -> + | S13: =tabprev!A13 -> 10 | T13: =tabprev!B13 -> 0.2333 | U13: 1981 | V13: 0.2333 | W13: 0.2333
A14: Calcolo Servizi Utili dal 1.1.93 fino al 31.12.95 | H14: Base pensionabile (Totale) | M14: =SUM(M$7:M$13) -> 35433.4 | N14: ="x" -> x | S14: =tabprev!A14 -> 11 | T14: =tabprev!B14 -> 0.2567 | U14: 1982 | V14: 0.2567 | W14: 0.2567
A15: mansione | C15: dal: | D15: al: | E15: anni: | F15: mesi: | G15: giorni: | H15: Aliquota di pensione al 31.12.92 | M15: =O5 -> 0.375 | N15: ="=" -> = | S15: =tabprev!A15 -> 12 | T15: =tabprev!B15 -> 0.28 | U15: 1983 | V15: 0.28 | W15: 0.28
C16: 1993-01-01 | D16: 1993-10-12 | E16: =IF(AND(C16<>"",D16<>""),FLOOR((DAYS360(C16,D16+1,TRUE))/360,1),0) -> 0 | F16: =IF(AND(C16<>"",D16<>""),FLOOR(((DAYS360(C16,D16+1,TRUE))-E16*360)/30,1),0) -> 9 | G16: =IF(AND(C16<>"",D16<>""),(DAYS360(C16,D16+1,TRUE))-E16*360-F16*30,0) -> 12 | H16: Quota A di pensione annua | M16: =M14*M15 -> 13287.525 | S16: =tabprev!A16 -> 13 | T16: =tabprev!B16 -> 0.3033 | U16: 1984 | V16: 0.3033 | W16: 0.3033
C17: 1993-10-13 | D17: 1995-12-31 | E17: =IF(AND(C17<>"",D17<>""),FLOOR((DAYS360(C17+1,D17,TRUE))/360,1),0) -> 2 | F17: =IF(AND(C17<>"",D17<>""),FLOOR(((DAYS360(C17,D17+1,TRUE))-E17*360)/30,1),0) -> 2 | G17: =IF(AND(C17<>"",D17<>""),(DAYS360(C17,D17+1,TRUE))-E17*360-F17*30,0) -> 18 | M17: anni: | N17: mesi: | O17: giorni: | S17: =tabprev!A17 -> 14 | T17: =tabprev!B17 -> 0.3267 | U17: 1985 | V17: 0.3267 | W17: 0.3267
E18: =IF(AND(C18<>"",D18<>""),FLOOR((DAYS360(C18+1,D18,TRUE))/360,1),0) -> 0 | F18: =IF(AND(C18<>"",D18<>""),FLOOR(((DAYS360(C18,D18+1,TRUE))-E18*360)/30,1),0) -> 0 | G18: =IF(AND(C18<>"",D18<>""),(DAYS360(C18,D18+1,TRUE))-E18*360-F18*30,0) -> 0 | H18: Servizio utile dal 1.1.93 alla data di cessazione | M18: =SUM($E$20,$E$27,INT(SUM(INT(SUM($G$20,$G$27)/30),$F$20,$F$27)/12)) -> 19 | N18: =MOD(SUM($F$20,$F$27,INT(SUM($G$20,$G$27)/30)),12) -> 2 | O18: =MOD(SUM($G$20,$G$27),30) -> 0 | S18: =tabprev!A18 -> 15 | T18: =tabprev!B18 -> 0.35 | U18: 1986 | V18: 0.35 | W18: 0.35
E19: =IF(AND(C19<>"",D19<>""),FLOOR((DAYS360(C19+1,D19,TRUE))/360,1),0) -> 0 | F19: =IF(AND(C19<>"",D19<>""),FLOOR(((DAYS360(C19,D19+1,TRUE))-E19*360)/30,1),0) -> 0 | G19: =IF(AND(C19<>"",D19<>""),(DAYS360(C19,D19+1,TRUE))-E19*360-F19*30,0) -> 0 | H19: Servizio utile alla data di cessazione | M19: =SUM($E$13,$M$18,INT(INT(SUM($F$13,$N$18)+INT(SUM($G$13,$O$18)/30))/12)) -> 42 | N19: =IF(M19=40,0,MOD(SUM($F$13,$N$18,INT(SUM($G$13,$O$18)/30)),12)) -> 4 | O19: =IF(M19=40,0,MOD(SUM($G$13,$O$18),30)) -> 15 | S19: =tabprev!A19 -> 16 | T19: =tabprev!B19 -> 0.368 | U19: 1987 | V19: 0.368 | W19: 0.368
A20: Tot. Servizi utili dal 1.1.93 al 31.12.95 | E20: =SUM(SUM($E$16:$E$19),INT(INT(SUM($F$16:$F$19)+INT(SUM($G$16:$G$19)/30))/12)) -> 3 | F20: =MOD(SUM(SUM($F$16:$F$19),INT(SUM($G$16:$G$19)/30)),12) -> 0 | G20: =MOD(SUM($G$16:$G$19),30) -> 0 | H20: Calcolo aliquota di pensione alla data di cessazione | S20: =tabprev!A20 -> 17 | T20: =tabprev!B20 -> 0.386 | U20: 1988 | V20: 0.386 | W20: 0.386
A21: Calcolo Servizi Utlili dal 1.1.96 fino alla data di cessazione | M21: anni: | N21: mesi: | O21: aliquota (a) | S21: =tabprev!A21 -> 18 | T21: =tabprev!B21 -> 0.404 | U21: 1989 | V21: 0.404 | W21: 0.404
A22: mansione | C22: dal: | D22: al: | E22: anni: | F22: mesi: | G22: giorni: | M22: 40 | N22: 0 | O22: =MIN($T$1,$V$1) -> 0.8 | S22: =tabprev!A22 -> 19 | T22: =tabprev!B22 -> 0.422 | U22: 1990 | V22: 0.422 | W22: 0.422
C23: 1996-01-01 | D23: 2012-02-29 | E23: =IF(AND(C23<>"",D23<>""),FLOOR((DAYS360(C23,D23+1,TRUE))/360,1),0) -> 16 | F23: =IF(AND(C23<>"",D23<>""),FLOOR(((DAYS360(C23,D23+1,TRUE))-E23*360)/30,1),0) -> 2 | G23: =IF(AND(C23<>"",D23<>""),(DAYS360(C23,D23+1,TRUE))-E23*360-F23*30,0) -> 0 | H23: Calcolo aliquota differenza tra aliq.data cessaz. e aliq. al 31.12.92 | S23: =tabprev!A23 -> 20 | T23: =tabprev!B23 -> 0.44 | U23: 1991 | V23: 0.44 | W23: 0.44
E24: =IF(AND(C24<>"",D24<>""),FLOOR((DAYS360(C24,D24+1,TRUE))/360,1),0) -> 0 | F24: =IF(AND(C24<>"",D24<>""),FLOOR(((DAYS360(C24,D24+1,TRUE))-E24*360)/30,1),0) -> 0 | G24: =IF(AND(C24<>"",D24<>""),(DAYS360(C24,D24+1,TRUE))-E24*360-F24*30,0) -> 0 | H24: Diff.(dal 1.1.93 alla cessaz.) in anni e mesi (a - b) | M24: anni: | N24: mesi: | O24: aliquota | S24: =tabprev!A24 -> 21 | T24: =tabprev!B24 -> 0.458 | U24: 1992 | V24: 0.458 | W24: 0.458
E25: =IF(AND(C25<>"",D25<>""),FLOOR((DAYS360(C25,D25+1,TRUE))/360,1),0) -> 0 | F25: =IF(AND(C25<>"",D25<>""),FLOOR(((DAYS360(C25,D25+1,TRUE))-E25*360)/30,1),0) -> 0 | G25: =IF(AND(C25<>"",D25<>""),(DAYS360(C25,D25+1,TRUE))-E25*360-F25*30,0) -> 0 | M25: =INT(($M$22*12+$N$22-($M$5*12+$N$5))/12) -> 19 | N25: =MOD($N$22+$M$22*12-($N$5+$M$5*12),12) -> 2 | O25: =INDEX($W$3:$W$43,MATCH($M25,$S$3:$S$43,0))+(INDEX($W$3:$W$43,MATCH($M25+1,$S$3:$S$43,0))-INDEX($W$3:$W$43,MATCH($M25,$S$3:$S$43,0)))/12*N25 -> 0.425 | S25: =tabprev!A25 -> 22 | T25: =tabprev!B25 -> 0.476 | U25: 1993 | V25: 0.476 | W25: 0.476
E26: =IF(AND(C26<>"",D26<>""),FLOOR((DAYS360(C26,D26+1,TRUE))/360,1),0) -> 0 | F26: =IF(AND(C26<>"",D26<>""),FLOOR(((DAYS360(C26,D26+1,TRUE))-E26*360)/30,1),0) -> 0 | G26: =IF(AND(C26<>"",D26<>""),(DAYS360(C26,D26+1,TRUE))-E26*360-F26*30,0) -> 0 | H26: Calcolo periodo riferim. (dal 1.1.93 alla data di decorrenza della pensione) | S26: =tabprev!A26 -> 23 | T26: =tabprev!B26 -> 0.494 | U26: 1994 | V26: 0.494 | W26: 0.494
A27: Totale Serv.utili dal 1.1.96 alla data cess. | E27: =SUM(SUM($E$23:$E$26),INT(INT(SUM($F$23:$F$26)+INT(SUM($G$23:$G$26)/30))/12)) -> 16 | F27: =MOD(SUM(SUM($F$23:$F$26),INT(SUM($G$23:$G$26)/30)),12) -> 2 | G27: =MOD(SUM($G$23:$G$26),30) -> 0 | L27: dal: | M27: al: | N27: mesi: | S27: =tabprev!A27 -> 24 | T27: =tabprev!B27 -> 0.512 | U27: 1995 | V27: 0.514 | W27: 0.512
H28: Calcolo mesi dal 1.1.93 al 31.12.95 al 50% | L28: 1993-01-01 | M28: 1995-12-31 | N28: =ROUND(SUM($E$20*360,$F$20*30,$G$20)/30*50%,0) -> 18 | S28: =tabprev!A28 -> 25 | T28: =tabprev!B28 -> 0.53 | U28: 1996 | V28: 0.534 | W28: 0.53
H29: Calcolo mesi dal 1.1.96 alla data cess.al 66,6% | L29: 1996-01-01 | M29: =$O$2 -> 2012-02-29 | N29: =ROUND(SUM($E$27*360,$F$27*30,$G$27)/30*66.6%,0) -> 129 | S29: =tabprev!A29 -> 26 | T29: =tabprev!B29 -> 0.548 | U29: 1997 | V29: 0.554 | W29: 0.548
H30: Periodo di riferimento in mesi | N30: =MIN(120,SUM(N28:N29)) -> 120 | S30: =tabprev!A30 -> 27 | T30: =tabprev!B30 -> 0.566 | U30: 1998 | V30: 0.574 | W30: 0.566
A31: CALCOLO SOMMATORIA RETRIBUZIONI RIVALUTATE DEL PERIODO DI RIFERIMENTO Retribuz. dalla data di cessaz. in poi, a ritroso nel tempo, fino a raggiungere il n° di mesi del periodo di riferim. per il calcolo della quota B di pensione | S31: =tabprev!A31 -> 28 | T31: =tabprev!B31 -> 0.584 | U31: 1999 | V31: 0.594 | W31: 0.584
A32: (ogni riga deve riferirsi ad un solo anno. I periodi che si collocano a cavallo di più anni devono essere spezzati per anno) | S32: =tabprev!A32 -> 29 | T32: =tabprev!B32 -> 0.602 | U32: 2000 | V32: 0.614 | W32: 0.602
A33: dal | B33: al | C33: n° mesi | D33: somma cumulata mesi | E33: anno | F33: stip.annuo lordo e vac.contr. (c) | G33: retribuz. individ. anzianità (d) | H33: assegno pers. ex Agensud (e) | I33: assegno personale L.239/04 (f) | J33: increm. 18% su c+d+e+f | K33: ind.int. spec. IIS | L33: comp. access. (indenn. ammin.) | M33: altri compensi accessori | N33: coeffic. rivalut. (compr.1%) | O33: coeff. x increm. 1% | P33: imp.rival. x i mesi corrisp. soluzione 1 | S33: =tabprev!A33 -> 30 | T33: =tabprev!B33 -> 0.62 | U33: 2001 | V33: 0.634 | W33: 0.62 | X33: Retr. fisse e cont. secondo me | Y33: Retr.fisse e cont. secondo M.S.E. | Z33: Diff. Secondo me - secondo M.S.E.
A34: 2012-01-01 | B34: 2012-02-29 | C34: =ROUND((B34-A34)/30,0) -> 2 | D34: =IF(AND(A34="",B34=""),0,IF(ROUND(SUM($C$34:C34),0)<=$N$30,ROUND(SUM($C$34:C34),0),"oltre limite")) -> 2 | E34: =IF(AND(A34="",B34=""),0,IF(YEAR(A34)=YEAR(B34),YEAR(B34),"data err.")) -> 2012 | F34: 22100 | G34: 2000 | I34: 300 | J34: =IF(AND($A34="",$B34=""),0,IF(AND($Q33=0,$R33=0),SUM($F34:$I34)*18%,0)) -> 4392 | K34: 6641.4 | L34: 3930 | M34: 0 | N34: =IF(AND($A34="",$B34=""),0,IF(OR(YEAR($A34)=YEAR($O$2),YEAR($A34)=YEAR($O$2)-1),1,IF(AND($Q33=0,$R33=0),INDEX(tabprev!$D$3:$P$22,MATCH(YEAR($A34),tabprev!$C$3:$C$22,0),MATCH(YEAR($O$2),tabprev!$D$2:$P$2,0))))) -> 1 | O34: =IF(N34=1,1,IF(N34=0,0,O33+1%)) -> 1 | P34: =IF(AND($A34="",$B34=""),0,IF(AND($Q33=0,$R33=0),ROUND((SUM($F34:$I34,$K34)/12*$C34+MAX($J34/12*$C34,SUM($L34/12*$C34,$M34)))*$N34*$O34,2),0)) -> 5905.57 | Q34: =IF(AND($A34="",$B34=""),0,IF(ROUND(SUM($C34:$C$35),0)<=$N$30,0,1)) -> 0 | R34: =IF(AND($A34="",$B34=""),0,IF(YEAR($A34)=YEAR($B34),0,1)) -> 0 | S34: =tabprev!A34 -> 31 | T34: =tabprev!B34 -> 0.638 | U34: 2002 | V34: 0.654 | W34: 0.638 | X34: =SUM(F34:I34,K34) -> 31041.4 | Y34: 32230.92 | Z34: =X34-Y34 -> -1189.52
A35: 2011-01-01 | B35: 2011-12-31 | C35: 12 | D35: =IF(AND(A35="",B35=""),0,IF(ROUND(SUM($C$34:C35),0)<=$N$30,ROUND(SUM($C$34:C35),0),"oltre limite")) -> 14 | E35: 2011 | F35: 22000 | G35: 2000 | I35: 300 | J35: 4374 | K35: 6641.4 | L35: 3930 | M35: 4000 | N35: =IF(AND($A35="",$B35=""),0,IF(OR(YEAR($A35)=YEAR($O$2),YEAR($A35)=YEAR($O$2)-1),1,IF(AND($Q34=0,$R34=0),INDEX(tabprev!$D$3:$P$22,MATCH(YEAR($A35),tabprev!$C$3:$C$22,0),MATCH(YEAR($O$2),tabprev!$D$2:$P$2,0))))) -> 1 | O35: 1 | P35: =IF(AND($A35="",$B35=""),0,IF(AND($Q34=0,$R34=0),ROUND((SUM($F35:$H35,$K35,$I35)/12*$C35+MAX($J35/12*$C35,SUM($L35/12*$C35,$M35)))*$N35*$O35,2),0)) -> 38871.4 | Q35: =IF(AND($A35="",$B35=""),0,IF(ROUND(SUM($C$35:$C35),0)<=$N$30,0,1)) -> 0 | R35: 0 | S35: =tabprev!A35 -> 32 | T35: =tabprev!B35 -> 0.656 | U35: 2003 | V35: 0.674 | W35: 0.656 | X35: 30941.4 | Y35: 32230.92 | Z35: -1289.52
A36: 2010-01-01 | B36: 2010-12-31 | C36: 12 | D36: =IF(AND(A36="",B36=""),0,IF(ROUND(SUM($C$34:C36),0)<=$N$30,ROUND(SUM($C$34:C36),0),"oltre limite")) -> 26 | E36: 2010 | F36: 21100 | G36: 2000 | I36: 300 | J36: 4212 | K36: 6641.4 | L36: 3930 | M36: 5000 | N36: =IF(AND($A36="",$B36=""),0,IF(OR(YEAR($A36)=YEAR($O$2),YEAR($A36)=YEAR($O$2)-1),1,IF(AND($Q35=0,$R35=0),INDEX(tabprev!$D$3:$P$22,MATCH(YEAR($A36),tabprev!$C$3:$C$22,0),MATCH(YEAR($O$2),tabprev!$D$2:$P$2,0))))) -> 1.026948288 | O36: 1.01 | P36: 40421.83 | Q36: =IF(AND($A36="",$B36=""),0,IF(ROUND(SUM($C$35:$C36),0)<=$N$30,0,1)) -> 0 | R36: 0 | S36: =tabprev!A36 -> 33 | T36: =tabprev!B36 -> 0.674 | U36: 2004 | V36: 0.694 | W36: 0.674 | X36: 30041.4 | Y36: 32155.11 | Z36: -2113.71
A37: 2009-01-01 | B37: 2009-12-31 | C37: 12 | D37: =IF(AND(A37="",B37=""),0,IF(ROUND(SUM($C$34:C37),0)<=$N$30,ROUND(SUM($C$34:C37),0),"oltre limite")) -> 38 | E37: 2009 | F37: 20000 | G37: 2000 | I37: 300 | J37: 4014 | K37: 6641.4 | L37: 3930 | M37: 5000 | N37: =IF(AND($A37="",$B37=""),0,IF(OR(YEAR($A37)=YEAR($O$2),YEAR($A37)=YEAR($O$2)-1),1,IF(AND($Q36=0,$R36=0),INDEX(tabprev!$D$3:$P$22,MATCH(YEAR($A37),tabprev!$C$3:$C$22,0),MATCH(YEAR($O$2),tabprev!$D$2:$P$2,0))))) -> 1.043671355 | O37: 1.02 | P37: 40315.8 | Q37: =IF(AND($A37="",$B37=""),0,IF(ROUND(SUM($C$35:$C37),0)<=$N$30,0,1)) -> 0 | R37: 0 | S37: =tabprev!A37 -> 34 | T37: =tabprev!B37 -> 0.692 | U37: 2005 | V37: 0.714 | W37: 0.692 | X37: 28941.4 | Y37: 32014.32 | Z37: -3072.92
A38: 2008-01-01 | B38: 2008-12-31 | C38: 12 | D38: =IF(AND(A38="",B38=""),0,IF(ROUND(SUM($C$34:C38),0)<=$N$30,ROUND(SUM($C$34:C38),0),"oltre limite")) -> 50 | E38: 2008 | F38: 19000 | G38: 2000 | H38: 800 | I38: 300 | J38: 3978 | K38: 6641.4 | L38: 3085.51 | M38: 6000 | N38: =IF(AND($A38="",$B38=""),0,IF(OR(YEAR($A38)=YEAR($O$2),YEAR($A38)=YEAR($O$2)-1),1,IF(AND($Q37=0,$R37=0),INDEX(tabprev!$D$3:$P$22,MATCH(YEAR($A38),tabprev!$C$3:$C$22,0),MATCH(YEAR($O$2),tabprev!$D$2:$P$2,0))))) -> 1.050670641 | O38: 1.03 | P38: 40935.93 | Q38: =IF(AND($A38="",$B38=""),0,IF(ROUND(SUM($C$35:$C38),0)<=$N$30,0,1)) -> 0 | R38: 0 | S38: =tabprev!A38 -> 35 | T38: =tabprev!B38 -> 0.71 | U38: 2006 | V38: 0.734 | W38: 0.71 | X38: 28741.4 | Y38: 31776.48 | Z38: -3035.08
A39: 2007-01-01 | B39: 2007-12-31 | C39: 12 | D39: =IF(AND(A39="",B39=""),0,IF(ROUND(SUM($C$34:C39),0)<=$N$30,ROUND(SUM($C$34:C39),0),"oltre limite")) -> 62 | E39: 2007 | F39: 18000 | G39: 2000 | H39: 1000 | I39: 1190 | J39: 3994.2 | K39: 6641.4 | L39: 1854.0075 | M39: 6000 | N39: =IF(AND($A39="",$B39=""),0,IF(OR(YEAR($A39)=YEAR($O$2),YEAR($A39)=YEAR($O$2)-1),1,IF(AND($Q38=0,$R38=0),INDEX(tabprev!$D$3:$P$22,MATCH(YEAR($A39),tabprev!$C$3:$C$22,0),MATCH(YEAR($O$2),tabprev!$D$2:$P$2,0))))) -> 1.084615385 | O39: 1.04 | P39: 41381.14 | Q39: =IF(AND($A39="",$B39=""),0,IF(ROUND(SUM($C$35:$C39),0)<=$N$30,0,1)) -> 0 | R39: 0 | S39: =tabprev!A39 -> 36 | T39: =tabprev!B39 -> 0.728 | U39: 2007 | V39: 0.754 | W39: 0.728 | X39: 28831.4 | Y39: 30946.7 | Z39: -2115.3
A40: 2006-01-01 | B40: 2006-12-31 | C40: 12 | D40: =IF(AND(A40="",B40=""),0,IF(ROUND(SUM($C$34:C40),0)<=$N$30,ROUND(SUM($C$34:C40),0),"oltre limite")) -> 74 | E40: 2006 | F40: 17100 | G40: 2000 | H40: 2300 | I40: 1200 | J40: 4068 | K40: 6641.4 | L40: 556.48 | M40: 3000 | N40: =IF(AND($A40="",$B40=""),0,IF(OR(YEAR($A40)=YEAR($O$2),YEAR($A40)=YEAR($O$2)-1),1,IF(AND($Q39=0,$R39=0),INDEX(tabprev!$D$3:$P$22,MATCH(YEAR($A40),tabprev!$C$3:$C$22,0),MATCH(YEAR($O$2),tabprev!$D$2:$P$2,0))))) -> 1.103286385 | O40: 1.05 | P40: 38587.3 | Q40: =IF(AND($A40="",$B40=""),0,IF(ROUND(SUM($C$35:$C40),0)<=$N$30,0,1)) -> 0 | R40: 0 | S40: =tabprev!A40 -> 37 | T40: =tabprev!B40 -> 0.746 | U40: 2008 | V40: 0.774 | W40: 0.746 | X40: 29241.4 | Y40: 30949.32 | Z40: -1707.92
A41: 2005-01-01 | B41: 2005-12-31 | C41: 12 | D41: =IF(AND(A41="",B41=""),0,IF(ROUND(SUM($C$34:C41),0)<=$N$30,ROUND(SUM($C$34:C41),0),"oltre limite")) -> 86 | E41: 2005 | F41: 16000 | G41: 2000 | H41: 2600 | I41: 1200 | J41: 3924 | K41: 6641.4 | L41: 332.9516667 | M41: 3000 | N41: =IF(AND($A41="",$B41=""),0,IF(OR(YEAR($A41)=YEAR($O$2),YEAR($A41)=YEAR($O$2)-1),1,IF(AND($Q40=0,$R40=0),INDEX(tabprev!$D$3:$P$22,MATCH(YEAR($A41),tabprev!$C$3:$C$22,0),MATCH(YEAR($O$2),tabprev!$D$2:$P$2,0))))) -> 1.125299282 | O41: 1.06 | P41: 38606.01 | Q41: =IF(AND($A41="",$B41=""),0,IF(ROUND(SUM($C$35:$C41),0)<=$N$30,0,1)) -> 0 | R41: 0 | S41: =tabprev!A41 -> 38 | T41: =tabprev!B41 -> 0.764 | U41: 2009 | V41: 0.794 | W41: 0.764 | X41: 28441.4 | Y41: 30917.34 | Z41: -2475.94
A42: 2004-01-01 | B42: 2004-12-31 | C42: 12 | D42: =IF(AND(A42="",B42=""),0,IF(ROUND(SUM($C$34:C42),0)<=$N$30,ROUND(SUM($C$34:C42),0),"oltre limite")) -> 98 | E42: 2004 | F42: 16900 | G42: 2000 | H42: 2900 | I42: 800 | J42: 4068 | K42: 6641.4 | M42: 2000 | N42: =IF(AND($A42="",$B42=""),0,IF(OR(YEAR($A42)=YEAR($O$2),YEAR($A42)=YEAR($O$2)-1),1,IF(AND($Q41=0,$R41=0),INDEX(tabprev!$D$3:$P$22,MATCH(YEAR($A42),tabprev!$C$3:$C$22,0),MATCH(YEAR($O$2),tabprev!$D$2:$P$2,0))))) -> 1.144480519 | O42: 1.07 | P42: 40790.5 | Q42: =IF(AND($A42="",$B42=""),0,IF(ROUND(SUM($C$35:$C42),0)<=$N$30,0,1)) -> 0 | R42: 0 | S42: =tabprev!A42 -> 39 | T42: =tabprev!B42 -> 0.782 | U42: 2010 | V42: 0.814 | W42: 0.782 | X42: 29241.4 | Y42: 30565.56 | Z42: -1324.16
A43: 2003-01-01 | B43: 2003-12-31 | C43: 12 | D43: =IF(AND(A43="",B43=""),0,IF(ROUND(SUM($C$34:C43),0)<=$N$30,ROUND(SUM($C$34:C43),0),"oltre limite")) -> 110 | E43: 2003 | F43: 16000 | G43: 2000 | H43: 3000 | J43: 3780 | K43: 6641.4 | M43: 2000 | N43: =IF(AND($A43="",$B43=""),0,IF(OR(YEAR($A43)=YEAR($O$2),YEAR($A43)=YEAR($O$2)-1),1,IF(AND($Q42=0,$R42=0),INDEX(tabprev!$D$3:$P$22,MATCH(YEAR($A43),tabprev!$C$3:$C$22,0),MATCH(YEAR($O$2),tabprev!$D$2:$P$2,0))))) -> 1.167218543 | O43: 1.08 | P43: 39609.69 | Q43: =IF(AND($A43="",$B43=""),0,IF(ROUND(SUM($C$35:$C43),0)<=$N$30,0,1)) -> 0 | R43: 0 | S43: =tabprev!A43 -> 40 | T43: =tabprev!B43 -> 0.8 | U43: 2011 | V43: 0.834 | W43: 0.8 | X43: 27641.4 | Y43: 29671.8 | Z43: -2030.4
A44: 2002-03-01 | B44: 2002-12-31 | C44: 10 | D44: =IF(AND(A44="",B44=""),0,IF(ROUND(SUM($C$34:C44),0)<=$N$30,ROUND(SUM($C$34:C44),0),"oltre limite")) -> 120 | E44: 2002 | F44: 15000 | G44: 2000 | H44: 4000 | J44: 3780 | K44: 6641.4 | M44: 2500 | N44: =IF(AND($A44="",$B44=""),0,IF(OR(YEAR($A44)=YEAR($O$2),YEAR($A44)=YEAR($O$2)-1),1,IF(AND($Q43=0,$R43=0),INDEX(tabprev!$D$3:$P$22,MATCH(YEAR($A44),tabprev!$C$3:$C$22,0),MATCH(YEAR($O$2),tabprev!$D$2:$P$2,0))))) -> 1.195928753 | O44: 1.09 | P44: 34133.13 | Q44: =IF(AND($A44="",$B44=""),0,IF(ROUND(SUM($C$35:$C44),0)<=$N$30,0,1)) -> 0 | R44: 0 | X44: 27641.4 | Y44: 29671.8 | Z44: -2030.4
C45: 0 | D45: =IF(AND(A45="",B45=""),0,IF(ROUND(SUM($C$34:C45),0)<=$N$30,ROUND(SUM($C$34:C45),0),"oltre limite")) -> 0 | E45: 0 | J45: 0 | M45: 0 | N45: =IF(AND($A45="",$B45=""),0,IF(OR(YEAR($A45)=YEAR($O$2),YEAR($A45)=YEAR($O$2)-1),1,IF(AND($Q44=0,$R44=0),INDEX(tabprev!$D$3:$P$22,MATCH(YEAR($A45),tabprev!$C$3:$C$22,0),MATCH(YEAR($O$2),tabprev!$D$2:$P$2,0))))) -> 0 | O45: 0 | P45: 0 | Q45: =IF(AND($A45="",$B45=""),0,IF(ROUND(SUM($C$35:$C45),0)<=$N$30,0,1)) -> 0 | R45: 0 | X45: 0
C46: 0 | D46: =IF(AND(A46="",B46=""),0,IF(ROUND(SUM($C$34:C46),0)<=$N$30,ROUND(SUM($C$34:C46),0),"oltre limite")) -> 0 | E46: 0 | J46: 0 | M46: 0 | N46: =IF(AND($A46="",$B46=""),0,IF(OR(YEAR($A46)=YEAR($O$2),YEAR($A46)=YEAR($O$2)-1),1,IF(AND($Q45=0,$R45=0),INDEX(tabprev!$D$3:$P$22,MATCH(YEAR($A46),tabprev!$C$3:$C$22,0),MATCH(YEAR($O$2),tabprev!$D$2:$P$2,0))))) -> 0 | O46: 0 | P46: 0 | Q46: =IF(AND($A46="",$B46=""),0,IF(ROUND(SUM($C$35:$C46),0)<=$N$30,0,1)) -> 0 | R46: 0 | X46: 0
C47: 0 | D47: =IF(AND(A47="",B47=""),0,IF(ROUND(SUM($C$34:C47),0)<=$N$30,ROUND(SUM($C$34:C47),0),"oltre limite")) -> 0 | E47: 0 | J47: 0 | M47: 0 | N47: =IF(AND($A47="",$B47=""),0,IF(OR(YEAR($A47)=YEAR($O$2),YEAR($A47)=YEAR($O$2)-1),1,IF(AND($Q46=0,$R46=0),INDEX(tabprev!$D$3:$P$22,MATCH(YEAR($A47),tabprev!$C$3:$C$22,0),MATCH(YEAR($O$2),tabprev!$D$2:$P$2,0))))) -> 0 | O47: 0 | P47: 0 | Q47: =IF(AND($A47="",$B47=""),0,IF(ROUND(SUM($C$35:$C47),0)<=$N$30,0,1)) -> 0 | R47: 0 | X47: 0
C48: 0 | D48: =IF(AND(A48="",B48=""),0,IF(ROUND(SUM($C$34:C48),0)<=$N$30,ROUND(SUM($C$34:C48),0),"oltre limite")) -> 0 | E48: 0 | J48: 0 | M48: 0 | N48: =IF(AND($A48="",$B48=""),0,IF(OR(YEAR($A48)=YEAR($O$2),YEAR($A48)=YEAR($O$2)-1),1,IF(AND($Q47=0,$R47=0),INDEX(tabprev!$D$3:$P$22,MATCH(YEAR($A48),tabprev!$C$3:$C$22,0),MATCH(YEAR($O$2),tabprev!$D$2:$P$2,0))))) -> 0 | O48: 0 | P48: 0 | Q48: =IF(AND($A48="",$B48=""),0,IF(ROUND(SUM($C$35:$C48),0)<=$N$30,0,1)) -> 0 | R48: 0 | X48: 0
C49: 0 | D49: =IF(AND(A49="",B49=""),0,IF(ROUND(SUM($C$34:C49),0)<=$N$30,ROUND(SUM($C$34:C49),0),"oltre limite")) -> 0 | E49: 0 | J49: 0 | M49: 0 | N49: =IF(AND($A49="",$B49=""),0,IF(OR(YEAR($A49)=YEAR($O$2),YEAR($A49)=YEAR($O$2)-1),1,IF(AND($Q48=0,$R48=0),INDEX(tabprev!$D$3:$P$22,MATCH(YEAR($A49),tabprev!$C$3:$C$22,0),MATCH(YEAR($O$2),tabprev!$D$2:$P$2,0))))) -> 0 | O49: 0 | P49: 0 | Q49: =IF(AND($A49="",$B49=""),0,IF(ROUND(SUM($C$35:$C49),0)<=$N$30,0,1)) -> 0 | R49: 0 | X49: 0
A50: TOTALE MESI | C50: =SUM(C$34:C49) -> 120 | J50: TOTALE IMPORTI RIVALUTATI | P50: =SUM($P$34:$P49) -> 399558.3
A51: Calcolo retribuzione media annua | G51: Calcolo quota B di pensione annua | K51: Calcolo pensione annua | O51: Pensione x 12 mensilità + 13ma | W51: =SUM($F49,$K49,$L49,$M49) -> 0
A52: Totale retrib.periodo riferim., rival.: | E52: =IF(AND($Q$49=0,$R$49=0),IF(MAX($D$34:$D$49)=$E$53,$P$50,0),0) -> 399558.3 | G52: Retribuz. media annua | I52: =E55 -> 39955.83 | J52: ="x" -> x | K52: Quota A | M52: =M$16 -> 13287.525 | W52: =SUM($F50,$J50,$K50,$M50) -> 0
A53: N° mesi periodo di riferimento | E53: =$N$30 -> 120 | G53: aliquota pensione dal 1.1.93 alla data cessaz. | I53: =$O$25 -> 0.425 | J53: ="=" -> = | K53: Quota B | M53: =$I$55 -> 16981.22775
A54: Retribuzione media mensile | E54: =IF(AND($Q$49=0,$R$49=0),IF($N$30<>0,E52/$N$30,0),0) -> 3329.6525 | K54: Pens.lorda | M54: =SUM(M$52:M$53) -> 30268.75275 | O54: =$M54/12 -> 2522.396062
A55: Retribuzione media annua | E55: =E$54*12 -> 39955.83 | G55: Quota B di pensione annua | I55: =I52*I53 -> 16981.22775 | K55: Pensione netta | M55: ='ire 2012 nota op.'!$H$7 -> 23082.52275 | O55: =$M55/12 -> 1923.543563

Sheet ire 2012
A1: ="reddito imponibile netto esercizio " & RIGHT(CELL("nomefile",$A$1),4)-2 -> reddito imponibile netto esercizio 2010 | B1: ="reddito imponibile netto esercizio " & RIGHT(CELL("nomefile",$A$1),4)-1 -> reddito imponibile netto esercizio 2011 | C1: ="reddito imponibile netto esercizio " & RIGHT(CELL("nomefile",$A$1),4) -> reddito imponibile netto esercizio 2012 | M1: 800 | N1: 900 | O1: 220 | P1: 200 | Q1: 95000 | R1: 15000
A2: 45094 | B2: 53644 | C2: =Pensione!$O$54*13 -> 32193.43431
A3: Detrazioni d'imposta: | C3: Coniuge mancante | D3: Detrazione coniuge (SI/NO) | E3: n.fig.>.3 anni non hand. | F3: n.fig.<= 3 anni non handicap | G3: n.fig.>.3 anni e hand. | H3: n.fig.<= 3 anni e hand. | I3: % detraz (0,5=50%/1=100%) | J3: n.mesi carico | K3: Altre persone | L3: Detrazione per redditi da pensione
D4: no | L4: si
A5: ="CALCOLO IMPOSTA LORDA ED ALIQUOTA MASSIMA ESERCIZIO "&RIGHT(CELL("nomefile",$A$5),4) & " secondo me" -> CALCOLO IMPOSTA LORDA ED ALIQUOTA MASSIMA ESERCIZIO 2012 secondo me | D5: ="CALCOLO ADDIZIONALE REGIONALE ESERCIZIO "& RIGHT(CELL("nomefile",$A$1),4) & " secondo me" -> CALCOLO ADDIZIONALE REGIONALE ESERCIZIO 2012 secondo me | F5: ="CALCOLO ADDIZIONALE COMUNALE ESERCIZIO "& RIGHT(CELL("nomefile",$A$1),4) & " secondo me" -> CALCOLO ADDIZIONALE COMUNALE ESERCIZIO 2012 secondo me | H5: ="CALCOLO REDDITO NETTO ANNUO ESERCIZIO "& RIGHT(CELL("nomefile",$A$1),4) & " secondo me" -> CALCOLO REDDITO NETTO ANNUO ESERCIZIO 2012 secondo me
A6: ="reddito imponibile netto esercizio " & RIGHT(CELL("nomefile",$A$5),4) -> reddito imponibile netto esercizio 2012 | B6: ="ire lorda " & RIGHT(CELL("nomefile",$A$5),4) -> ire lorda 2012 | C6: ="aliquota massima " & RIGHT(CELL("nomefile",$A$5),4) -> aliquota massima 2012 | D6: ="aliquota massima " & RIGHT(CELL("nomefile",$A$1),4) -> aliquota massima 2012 | E6: ="importo addizionale " & RIGHT(CELL("nomefile",$A$1),4) -> importo addizionale 2012 | F6: ="aliquota massima " & RIGHT(CELL("nomefile",$A$1),4) -> aliquota massima 2012 | G6: ="importo addizionale " & RIGHT(CELL("nomefile",$A$1),4) -> importo addizionale 2012
A7: =C2 -> 32193.43431 | B7: =irelordaannuapensionatisecondome($A$7,ROW($B$21),COLUMN($B$21)) -> 8553.505039 | C7: =aliquotamassimasecondome($A$7,ROW($B$21),COLUMN($B$21)) -> 1 | D7: 0.0203 | E7: =C2*D7 -> 653.5267166 | F7: 0.008 | G7: =C2*F7 -> 257.5474745 | H7: =A7-B7-E7-G7 -> 22728.85508
A8: ="CALCOLO ALIQUOTA MEDIA BIENNIO "&RIGHT(CELL("nomefile",$A$1),4)-2&" - "&RIGHT(CELL("nomefile",A1),4)-1 -> CALCOLO ALIQUOTA MEDIA BIENNIO 2010 - 2011
A9: ="reddito imponibile netto esercizio " & RIGHT(CELL("nomefile",$A$5),4)-2 -> reddito imponibile netto esercizio 2010 | B9: ="reddito imponibile netto esercizio " & RIGHT(CELL("nomefile",$A$5),4)-1 -> reddito imponibile netto esercizio 2011 | C9: ="reddito medio biennio "&RIGHT(CELL("nomefile",$A$5),4)-2&" - "&RIGHT(CELL("nomefile",$A$5),4)-1 -> reddito medio biennio 2010 - 2011 | D9: ="ire corrispondente al reddito medio" -> ire corrispondente al reddito medio | E9: ="aliquota media " & RIGHT(CELL("nomefile",$A$5),4) -> aliquota media 2012
A10: =A2 -> 45094 | B10: =B2 -> 53644 | C10: =SUM(A10:B10)/2 -> 49369 | D10: =irexaliqmediasecondome($C$10,ROW($B$21),COLUMN($B$21)) -> 4088656.116 | E10: 0
E11: IRE su Pensione
A12: ire lorda annua | E12: =irelordaannuapensionatisecondome($C$2,ROW($B$21),COLUMN($B$21)) -> 8553.505039
A13: Detrazione coniuge | E13: =IF(AND($C$2<>"",UPPER($D$4)="SI"),INDEX($L$27:$L$36,MATCH($C$2,$K$27:$K$36,1)+1,1),0) -> 0
A14: Detrazione figli | E14: =SUM($H$40:$I$43,$H$48:$I$51) -> 0
A15: Altre persone | E15: =$L$56 -> 0
A16: Detrazione per reddito da pensione | E16: =IF(AND($C$2<>"",UPPER($L$4)="SI"),INDEX($L$59:$L$62,MATCH($C$2,$D$59:$D$62,1)+1),0) -> 715.4755
A17: ire netta annua | E17: =IF(E$12-E$13-E$14-E$15-E$16<=0,0,E$12-E$13-E$14-E$15-E$16) -> 7838.029539
A19: Aliquote e scaglioni IRE:
A20: aliquote: | B20: 0.23 | C20: 0.27 | D20: 0.38 | E20: 0.41 | F20: 0.43
A21: scaglioni (fino a): | B21: 15000 | C21: 28000 | D21: 55000 | E21: 75000 | F21: (oltre 75.000)
A23: DETRAZIONI PER CARICO DI FAMIGLIA (Coniuge, figli o altri familiari a carico se con reddito annuo <= 2.840,51)
A24: Coniuge
A25: scaglioni di reddito | E25: detrazione teorica | F25: detrazione effettiva | I25: note | K25: redd.scag.+1 | L25: detraz.
K26: 0 | L26: 0
A27: da | B27: 0 | C27: fino a | D27: 15000 | E27: 800 | F27: 800 - | G27: 110 | H27: r.c. x ----------- 15.000,00 | I27: se rapporto = 1 allora detrazione = 690 se rapporto = 0 allora detrazione = 0 | K27: =D27+1 -> 15001 | L27: =IF(AND($A$7>$B$27,$A$7<=$D$27),IF($A$7/$D$27=0,0,IF($A$7/$D$27=1,690,$E$27-$G$27*$A$7/$D$27)),0) -> 0
A28: oltre | B28: 15000 | C28: fino a | D28: 29000 | F28: 690 | K28: 29001 | L28: =IF(AND($A$7>$B$28,$A$7<=$D$28),$F$28,0) -> 0
A29: oltre | B29: 29000 | C29: fino a | D29: 29200 | F29: 700 | I29: 690 + | J29: 10 | K29: 29201 | L29: =IF(AND($A$7>$B$29,$A$7<=$D$29),$F$29,0) -> 0
A30: oltre | B30: 29200 | C30: fino a | D30: 34700 | F30: 710 | I30: 690 + | J30: 20 | K30: 34701 | L30: =IF(AND($A$7>$B$30,$A$7<=$D$30),$F$30,0) -> 710
A31: oltre | B31: 34700 | C31: fino a | D31: 35000 | F31: 720 | I31: 690 + | J31: 30 | K31: 35001 | L31: =IF(AND($A$7>$B$31,$A$7<=$D$31),$F$31,0) -> 0
A32: oltre | B32: 35000 | C32: fino a | D32: 35100 | F32: 710 | I32: 690 + | J32: 20 | K32: 35101 | L32: =IF(AND($A$7>$B$32,$A$7<=$D$32),$F$32,0) -> 0
A33: oltre | B33: 35100 | C33: fino a | D33: 35200 | F33: 700 | I33: 690 + | J33: 10 | K33: 35201 | L33: =IF(AND($A$7>$B$33,$A$7<=$D$33),$F$33,0) -> 0
A34: oltre | B34: 35200 | C34: fino a | D34: 40000 | F34: 690 | K34: 40001 | L34: =IF(AND($A$7>$B$34,$A$7<=$D$34),$F$34,0) -> 0
A35: oltre | B35: 40000 | C35: fino a | D35: 80000 | F35: 690 | G35: 80.000,00 - r.c. x ------------------- 40.000,00 | I35: se rapporto = 0 allora detrazione = 0 | K35: 80001 | L35: =IF(AND($A$7>$B$35,$A$7<=$D$35),IF(($D$35-$A$7)/$B$35=0,0,$F$35*($D$35-$A$7)/$B$35),0) -> 0
A36: oltre | B36: 80000 | D36: 99999 | I36: non spetta alcuna detrazione | K36: 100000 | L36: 0
A38: Figli (fino a 3)
C39: n° figli | D39: detraz. teoriche | E39: detrazione spettante per ciascun figlio successivo al primo | H39: detraz.1° figlio | I39: detraz. figli dal 2° | J39: quoziente | K39: note
A40: maggiore di 3 anni non portatori handicap | C40: =IF(SUM($C$4:$F$4)<=3,$E$4,0) -> 0 | D40: =$M$1 -> 800 | E40: =D40 -> 800 | F40: 95.000 + 15.000 x (n.fig.tot. -1) - r.c. x --------------------------------------------- 95.000+15 000 x (n.fig.tot. -1) | H40: =IF($C40>0,IF(UPPER($C$4)="SI",MAX($D40*$J40,INDEX($L$26:$L$36,MATCH($A$7,$K$26:$K$36,1)+1,1)),$D40*$J40*$I$4*$J$4/12),0) -> 0 | I40: =IF($H40<>0,$D40*$J40*($C40-1)*$I$4*$J$4/12,$D40*$J40*$C40*$I$4*$J$4/12) -> 0 | J40: =ROUND(IF(OR((95000+15000*($E$4-1)-$A$7)/(95000+15000*($E$4-1))<0,(95000+15000*($E$4-1)-$A$7)/(95000+15000*($E$4-1))=1),0,(95000+15000*($E$4-1)-$A$7)/(95000+15000*($E$4-1))),4) -> 0.5976 | K40: se il rapporto indicato è <= 0 oppure è = 1, allora detraz.spettante =0
A41: minore di 3 anni non portatori handicap | C41: =IF(SUM($C$4:$F$4)<=3,$F$4,0) -> 0 | D41: =$N$1 -> 900 | E41: =D41 -> 900 | F41: 95.000 + 15.000 x (n.fig.tot. -1) - r.c. x --------------------------------------------- 95.000+15 000 x (n.fig.tot. -1) | H41: =IF($C41>0,IF(UPPER($C$4)="SI",MAX($D41*$J41,INDEX($L$26:$L$36,MATCH($A$7,$K$26:$K$36,1)+1,1)),$D41*$J41*$I$4*$J$4/12),0) -> 0 | I41: =IF($C41>1,$D41*$J41*$C41*$I$4*$J$4/12,0) -> 0 | J41: =J40 -> 0.5976
A42: maggiore di 3 anni e portatore di handicap | C42: =IF(SUM($C$4:$F$4)<=3,$G$4,0) -> 0 | D42: =$M$1+$O$1 -> 1020 | E42: =D42 -> 1020 | F42: 95.000 + 15.000 x (n.fig.tot. -1) - r.c. x --------------------------------------------- 95.000+15000 x (n.fig.tot. -1) | H42: =IF($C42>0,IF(UPPER($C$4)="SI",MAX($D42*$J42,INDEX($L$26:$L$36,MATCH($A$7,$K$26:$K$36,1)+1,1)),$D42*$J42*$I$4*$J$4/12),0) -> 0 | I42: =IF($C42>1,$D42*$J42*$C42*$I$4*$J$4/12,0) -> 0 | J42: =J40 -> 0.5976
A43: minore di 3 anni e portatore di handicap | C43: =IF(SUM($C$4:$F$4)<=3,$H$4,0) -> 0 | D43: =$D$41+$O$1 -> 1120 | E43: =D43 -> 1120 | F43: 95.000 + 15.000 x (n.fig.tot. -1) - r.c. x --------------------------------------------- 95.000+15000 x (n.fig.tot. -1) | H43: =IF($C43>0,IF(UPPER($C$4)="SI",MAX($D43*$J43,INDEX($L$26:$L$36,MATCH($A$7,$K$26:$K$36,1)+1,1)),$D43*$J43*$I$4*$J$4/12),0) -> 0 | I43: =IF($C43>1,$D43*$J43*$C43*$I$4*$J$4/12,0) -> 0 | J43: =J40 -> 0.5976
A44: Totale figli | C44: =IF(SUM($C$4:$F$4)<=3,SUM($C$4:$F$4),0) -> 0
A46: Figli (oltre i 3) (le detrazioni teoriche aumentano di 200 € per ciascun figlio a partire dal 1°)
C47: n° figli | D47: detrazioni teoriche | E47: detrazione spettante per ciascun figlio successivo al primo | H47: detraz.1° figlio | I47: detraz. figli dal 2° | J47: quoziente | K47: note
A48: maggiore di 3 anni non portatori handicap | C48: =IF(SUM($C$4:$F$4)>3,$E$4,0) -> 0 | D48: =$M$1+200 -> 1000 | E48: =D48 -> 1000 | F48: 95.000 + 15.000 x (n.fig.tot. -1) - r.c. x --------------------------------------------- 95.000+15000 x (n.fig.tot. -1) | H48: =IF($C48>0,IF(UPPER($C$4)="SI",MAX($D48*$J48,INDEX($L$26:$L$36,MATCH($A$7,$K$26:$K$36,1)+1,1)),$D48*$J48*$I$4*$J$4/12),0) -> 0 | I48: =IF($H48<>0,$D48*$J48*($C48-1)*$I$4*$J$4/12,$D48*$J48*$C48*$I$4*$J$4/12) -> 0 | J48: =ROUND(IF(OR((95000+15000*($E$4-1)-$A$7)/(95000+15000*($E$4-1))<0,(95000+15000*($E$4-1)-$A$7)/(95000+15000*($E$4-1))=1),0,(95000+15000*($E$4-1)-$A$7)/(95000+15000*($E$4-1))),4) -> 0.5976 | K48: se il rapporto indicato è <= 0 oppure è = 1, allora detraz.spettante =0
A49: minore di 3 anni non portatori handicap | C49: =IF(SUM($C$4:$F$4)>3,$F$4,0) -> 0 | D49: =$N$1+200 -> 1100 | E49: =D49 -> 1100 | F49: 95.000 + 15.000 x (n.fig.tot. -1) - r.c. x --------------------------------------------- 95.000+15000 x (n.fig.tot. -1) | H49: =IF($C49>0,IF(UPPER($C$4)="SI",MAX($D49*$J49,INDEX($L$26:$L$36,MATCH($A$7,$K$26:$K$36,1)+1,1)),$D49*$J49*$I$4*$J$4/12),0) -> 0 | I49: =IF($C49>1,$D49*$J49*$C49*$I$4*$J$4/12,0) -> 0 | J49: =J48 -> 0.5976
A50: maggiore di 3 anni e portatore di handicap | C50: =IF(SUM($C$4:$F$4)>3,$G$4,0) -> 0 | D50: =$M$1+$O$1+200 -> 1220 | E50: =D50 -> 1220 | F50: 95.000 + 15.000 x (n.fig.tot. -1) - r.c. x --------------------------------------------- 95.000+15000 x (n.fig.tot. -1) | H50: =IF($C50>0,IF(UPPER($C$4)="SI",MAX($D50*$J50,INDEX($L$26:$L$36,MATCH($A$7,$K$26:$K$36,1)+1,1)),$D50*$J50*$I$4*$J$4/12),0) -> 0 | I50: =IF($C50>1,$D50*$J50*$C50*$I$4*$J$4/12,0) -> 0 | J50: =J48 -> 0.5976
A51: minore di 3 anni e portatore di handicap | C51: =IF(SUM($C$4:$F$4)>3,$H$4,0) -> 0 | D51: =$D$41+$O$1+200 -> 1320 | E51: =D51 -> 1320 | F51: 95.000 + 15.000 x (n.fig.tot. -1) - r.c. x --------------------------------------------- 95.000+15.000 x (n.fig.tot. -1) | H51: =IF($C51>0,IF(UPPER($C$4)="SI",MAX($D51*$J51,INDEX($L$26:$L$36,MATCH($A$7,$K$26:$K$36,1)+1,1)),$D51*$J51*$I$4*$J$4/12),0) -> 0 | I51: =IF($C51>1,$D51*$J51*$C51*$I$4*$J$4/12,0) -> 0 | J51: =J48 -> 0.5976
A52: Totale figli | C52: =IF(SUM($C$4:$F$4)>3,SUM($C$4:$F$4),0) -> 0
A54: Altre persone
A55: detraz. teorica | B55: detrazione spettante per ciascun familiare | E55: note | K55: quoziente | L55: detrazione
A56: 750 | B56: =A56 -> 750 | C56: 80.000 - r.c. x -------------- 80.000 | E56: se il rapporto indicato è <= 0 oppure è = 1, allora detraz.spettante =0 | K56: =(80000-$A$7)/80000 -> 0.5975820711 | L56: =IF(AND(K56>0,K56<1),$B$56*INT(K56*10000)/10000,0)*$K$4 -> 0
A58: Detrazione per reddito da pensione (contribuenti che non hanno compiuto 75 anni)
A59: scaglioni di reddito | D59: 0 | E59: detraz. teorica | F59: detrazione effettiva | I59: redd.scag.+1 | J59: quoziente | K59: se il periodo di lavoro nell'anno è inferiore a 365 giorni, allora la detrazione è pari a 690,00 | L59: detrazione
A60: da | B60: 0 | C60: fino a | D60: 7500 | F60: 1725 | I60: =D60+1 -> 7501 | L60: =IF(AND($A$7>$B$60,$A$7<=$D$60),MAX($F60,690),0) -> 0
A61: oltre | B61: 7500 | C61: fino a | D61: 15000 | E61: 1255 | F61: =E61 -> 1255 | G61: 15.000 - r.c. + 470 x ---------------- 7.500 | I61: =D61+1 -> 15001 | J61: =(15000-$A$7)/7500 -> -2.292457909 | L61: =IF(AND($A$7>$B$61,$A$7<=$D$61),IF(AND(J61>0,J61<1),$E$61+470*INT(J61*10000)/10000,1),0) -> 0
A62: oltre | B62: 15000 | C62: fino a | D62: 55000 | E62: 1255 | F62: =E62 -> 1255 | G62: 55.000 - r.c. x -------------- 40.000 | I62: =D62+1 -> 55001 | J62: =(55000-$A$7)/40000 -> 0.5701641421 | L62: =IF(AND($A$7>$B$62,$A$7<=$D$62),IF(AND(J62>0,J62<1),$E$62*INT(J62*10000)/10000,1),0) -> 715.4755

Sheet ire 2012 nota op.
A1: ="reddito imponibile netto esercizio " & LEFT(RIGHT(CELL("nomefile",$A$1),13),4)-2 -> reddito imponibile netto esercizio 2010 | B1: ="reddito imponibile netto esercizio " & LEFT(RIGHT(CELL("nomefile",$A$1),13),4)-1 -> reddito imponibile netto esercizio 2011 | C1: ="reddito imponibile netto esercizio " & LEFT(RIGHT(CELL("nomefile",$A$1),13),4) -> reddito imponibile netto esercizio 2012 | M1: 800 | N1: 900 | O1: 220 | P1: 200 | Q1: 95000 | R1: 15000
A2: 45094 | B2: 53644 | C2: ='Pensione nota op.'!$O$54*13 -> 32791.14881
A3: Detrazioni d'imposta: | C3: Coniuge mancante | D3: Detrazione coniuge (SI/NO) | E3: n.fig.>.3 anni non hand. | F3: n.fig.<= 3 anni non handicap | G3: n.fig.>.3 anni e hand. | H3: n.fig.<= 3 anni e hand. | I3: % detraz (0,5=50%/1=100%) | J3: n.mesi carico | K3: Altre persone | L3: Detrazione per redditi da pensione
D4: no | L4: si
A5: ="CALCOLO IMPOSTA LORDA ED ALIQUOTA MASSIMA ESERCIZIO "& LEFT(RIGHT(CELL("nomefile",$A$1),13),4) & " secondo me" -> CALCOLO IMPOSTA LORDA ED ALIQUOTA MASSIMA ESERCIZIO 2012 secondo me | D5: ="CALCOLO ADDIZIONALE REGIONALE ESERCIZIO "& RIGHT(CELL("nomefile",$A$1),4) & " secondo me" -> CALCOLO ADDIZIONALE REGIONALE ESERCIZIO op. secondo me | F5: ="CALCOLO ADDIZIONALE COMUNALE ESERCIZIO "& RIGHT(CELL("nomefile",$A$1),4) & " secondo me" -> CALCOLO ADDIZIONALE COMUNALE ESERCIZIO op. secondo me | H5: ="CALCOLO REDDITO NETTO ANNUO ESERCIZIO "& RIGHT(CELL("nomefile",$A$1),4) & " secondo me" -> CALCOLO REDDITO NETTO ANNUO ESERCIZIO op. secondo me
A6: ="reddito imponibile netto esercizio " & LEFT(RIGHT(CELL("nomefile",$A$1),13),4) -> reddito imponibile netto esercizio 2012 | B6: ="ire lorda " & LEFT(RIGHT(CELL("nomefile",$A$1),13),4) -> ire lorda 2012 | C6: ="aliquota massima " & LEFT(RIGHT(CELL("nomefile",$A$1),13),4)-2 -> aliquota massima 2010 | D6: ="aliquota massima " & RIGHT(CELL("nomefile",$A$1),4) -> aliquota massima op. | E6: ="importo addizionale " & RIGHT(CELL("nomefile",$A$1),4) -> importo addizionale op. | F6: ="aliquota massima " & RIGHT(CELL("nomefile",$A$1),4) -> aliquota massima op. | G6: ="importo addizionale " & RIGHT(CELL("nomefile",$A$1),4) -> importo addizionale op.
A7: =C2 -> 32791.14881 | B7: =irelordaannuapensionatisecondome($A$7,ROW($B$21),COLUMN($B$21)) -> 8780.636549 | C7: =aliquotamassimasecondome($A$7,ROW($B$21),COLUMN($B$21)) -> 1 | D7: 0.0203 | E7: =C2*D7 -> 665.6603209 | F7: 0.008 | G7: =C2*F7 -> 262.3291905 | H7: =A7-B7-E7-G7 -> 23082.52275
A8: ="CALCOLO ALIQUOTA MEDIA BIENNIO "& LEFT(RIGHT(CELL("nomefile",$A$1),13),4)-2 &" - "& LEFT(RIGHT(CELL("nomefile",$A$1),13),4)-1 -> CALCOLO ALIQUOTA MEDIA BIENNIO 2010 - 2011
A9: ="reddito imponibile netto esercizio " & LEFT(RIGHT(CELL("nomefile",$A$1),13),4)-2 -> reddito imponibile netto esercizio 2010 | B9: ="reddito imponibile netto esercizio " & LEFT(RIGHT(CELL("nomefile",$A$1),13),4)-1 -> reddito imponibile netto esercizio 2011 | C9: ="reddito medio biennio "& LEFT(RIGHT(CELL("nomefile",$A$1),13),4)-2 &" - "& LEFT(RIGHT(CELL("nomefile",$A$1),13),4)-1 -> reddito medio biennio 2010 - 2011 | D9: ="ire corrispondente al reddito medio" -> ire corrispondente al reddito medio | E9: ="aliquota media " & LEFT(RIGHT(CELL("nomefile",$A$1),13),4) -> aliquota media 2012
A10: =A2 -> 45094 | B10: =B2 -> 53644 | C10: =SUM(A10:B10)/2 -> 49369 | D10: =irexaliqmediasecondome($C$10,ROW($B$21),COLUMN($B$21)) -> 4088656.116
E11: IRE su Pensione
A12: ire lorda annua | E12: =irelordaannuapensionatisecondome($C$2,ROW($B$21),COLUMN($B$21)) -> 8780.636549
A13: Detrazione coniuge | E13: =IF(AND($C$2<>"",UPPER($D$4)="SI"),INDEX($L$27:$L$36,MATCH($C$2,$K$27:$K$36,1)+1,1),0) -> 0
A14: Detrazione figli | E14: =SUM($H$40:$I$43,$H$48:$I$51) -> 0
A15: Altre persone | E15: =$L$56 -> 0
A16: Detrazione per reddito da pensione | E16: =IF(AND($C$2<>"",UPPER($L$4)="SI"),INDEX($L$59:$L$62,MATCH($C$2,$D$59:$D$62,1)+1),0) -> 696.776
A17: ire netta annua | E17: =IF(E$12-E$13-E$14-E$15-E$16<=0,0,E$12-E$13-E$14-E$15-E$16) -> 8083.860549
A19: Aliquote e scaglioni IRE:
A20: aliquote: | B20: 0.23 | C20: 0.27 | D20: 0.38 | E20: 0.41 | F20: 0.43
A21: scaglioni (fino a): | B21: 15000 | C21: 28000 | D21: 55000 | E21: 75000 | F21: (oltre 75.000)
A23: DETRAZIONI PER CARICO DI FAMIGLIA (Coniuge, figli o altri familiari a carico se con reddito annuo <= 2.840,51)
A24: Coniuge
A25: scaglioni di reddito | E25: detrazione teorica | F25: detrazione effettiva | I25: note | K25: redd.scag.+1 | L25: detraz.
K26: 0 | L26: 0
A27: da | B27: 0 | C27: fino a | D27: 15000 | E27: 800 | F27: 800 - | G27: 110 | H27: r.c. x ----------- 15.000,00 | I27: se rapporto = 1 allora detrazione = 690 se rapporto = 0 allora detrazione = 0 | K27: =D27+1 -> 15001 | L27: =IF(AND($A$7>$B$27,$A$7<=$D$27),IF($A$7/$D$27=0,0,IF($A$7/$D$27=1,690,$E$27-$G$27*$A$7/$D$27)),0) -> 0
A28: oltre | B28: 15000 | C28: fino a | D28: 29000 | F28: 690 | K28: 29001 | L28: =IF(AND($A$7>$B$28,$A$7<=$D$28),$F$28,0) -> 0
A29: oltre | B29: 29000 | C29: fino a | D29: 29200 | F29: 700 | I29: 690 + | J29: 10 | K29: 29201 | L29: =IF(AND($A$7>$B$29,$A$7<=$D$29),$F$29,0) -> 0
A30: oltre | B30: 29200 | C30: fino a | D30: 34700 | F30: 710 | I30: 690 + | J30: 20 | K30: 34701 | L30: =IF(AND($A$7>$B$30,$A$7<=$D$30),$F$30,0) -> 710
A31: oltre | B31: 34700 | C31: fino a | D31: 35000 | F31: 720 | I31: 690 + | J31: 30 | K31: 35001 | L31: =IF(AND($A$7>$B$31,$A$7<=$D$31),$F$31,0) -> 0
A32: oltre | B32: 35000 | C32: fino a | D32: 35100 | F32: 710 | I32: 690 + | J32: 20 | K32: 35101 | L32: =IF(AND($A$7>$B$32,$A$7<=$D$32),$F$32,0) -> 0
A33: oltre | B33: 35100 | C33: fino a | D33: 35200 | F33: 700 | I33: 690 + | J33: 10 | K33: 35201 | L33: =IF(AND($A$7>$B$33,$A$7<=$D$33),$F$33,0) -> 0
A34: oltre | B34: 35200 | C34: fino a | D34: 40000 | F34: 690 | K34: 40001 | L34: =IF(AND($A$7>$B$34,$A$7<=$D$34),$F$34,0) -> 0
A35: oltre | B35: 40000 | C35: fino a | D35: 80000 | F35: 690 | G35: 80.000,00 - r.c. x ------------------- 40.000,00 | I35: se rapporto = 0 allora detrazione = 0 | K35: 80001 | L35: =IF(AND($A$7>$B$35,$A$7<=$D$35),IF(($D$35-$A$7)/$B$35=0,0,$F$35*($D$35-$A$7)/$B$35),0) -> 0
A36: oltre | B36: 80000 | D36: 99999 | I36: non spetta alcuna detrazione | K36: 100000 | L36: 0
A38: Figli (fino a 3)
C39: n° figli | D39: detraz. teoriche | E39: detrazione spettante per ciascun figlio successivo al primo | H39: detraz.1° figlio | I39: detraz. figli dal 2° | J39: quoziente | K39: note
A40: maggiore di 3 anni non portatori handicap | C40: =IF(SUM($C$4:$F$4)<=3,$E$4,0) -> 0 | D40: =$M$1 -> 800 | E40: =D40 -> 800 | F40: 95.000 + 15.000 x (n.fig.tot. -1) - r.c. x --------------------------------------------- 95.000+15 000 x (n.fig.tot. -1) | H40: =IF($C40>0,IF(UPPER($C$4)="SI",MAX($D40*$J40,INDEX($L$26:$L$36,MATCH($A$7,$K$26:$K$36,1)+1,1)),$D40*$J40*$I$4*$J$4/12),0) -> 0 | I40: =IF($H40<>0,$D40*$J40*($C40-1)*$I$4*$J$4/12,$D40*$J40*$C40*$I$4*$J$4/12) -> 0 | J40: =ROUND(IF(OR((95000+15000*($E$4-1)-$A$7)/(95000+15000*($E$4-1))<0,(95000+15000*($E$4-1)-$A$7)/(95000+15000*($E$4-1))=1),0,(95000+15000*($E$4-1)-$A$7)/(95000+15000*($E$4-1))),4) -> 0.5901 | K40: se il rapporto indicato è <= 0 oppure è = 1, allora detraz.spettante =0
A41: minore di 3 anni non portatori handicap | C41: =IF(SUM($C$4:$F$4)<=3,$F$4,0) -> 0 | D41: =$N$1 -> 900 | E41: =D41 -> 900 | F41: 95.000 + 15.000 x (n.fig.tot. -1) - r.c. x --------------------------------------------- 95.000+15 000 x (n.fig.tot. -1) | H41: =IF($C41>0,IF(UPPER($C$4)="SI",MAX($D41*$J41,INDEX($L$26:$L$36,MATCH($A$7,$K$26:$K$36,1)+1,1)),$D41*$J41*$I$4*$J$4/12),0) -> 0 | I41: =IF($C41>1,$D41*$J41*$C41*$I$4*$J$4/12,0) -> 0 | J41: =J40 -> 0.5901
A42: maggiore di 3 anni e portatore di handicap | C42: =IF(SUM($C$4:$F$4)<=3,$G$4,0) -> 0 | D42: =$M$1+$O$1 -> 1020 | E42: =D42 -> 1020 | F42: 95.000 + 15.000 x (n.fig.tot. -1) - r.c. x --------------------------------------------- 95.000+15000 x (n.fig.tot. -1) | H42: =IF($C42>0,IF(UPPER($C$4)="SI",MAX($D42*$J42,INDEX($L$26:$L$36,MATCH($A$7,$K$26:$K$36,1)+1,1)),$D42*$J42*$I$4*$J$4/12),0) -> 0 | I42: =IF($C42>1,$D42*$J42*$C42*$I$4*$J$4/12,0) -> 0 | J42: =J40 -> 0.5901
A43: minore di 3 anni e portatore di handicap | C43: =IF(SUM($C$4:$F$4)<=3,$H$4,0) -> 0 | D43: =$D$41+$O$1 -> 1120 | E43: =D43 -> 1120 | F43: 95.000 + 15.000 x (n.fig.tot. -1) - r.c. x --------------------------------------------- 95.000+15000 x (n.fig.tot. -1) | H43: =IF($C43>0,IF(UPPER($C$4)="SI",MAX($D43*$J43,INDEX($L$26:$L$36,MATCH($A$7,$K$26:$K$36,1)+1,1)),$D43*$J43*$I$4*$J$4/12),0) -> 0 | I43: =IF($C43>1,$D43*$J43*$C43*$I$4*$J$4/12,0) -> 0 | J43: =J40 -> 0.5901
A44: Totale figli | C44: =IF(SUM($C$4:$F$4)<=3,SUM($C$4:$F$4),0) -> 0
A46: Figli (oltre i 3) (le detrazioni teoriche aumentano di 200 € per ciascun figlio a partire dal 1°)
C47: n° figli | D47: detrazioni teoriche | E47: detrazione spettante per ciascun figlio successivo al primo | H47: detraz.1° figlio | I47: detraz. figli dal 2° | J47: quoziente | K47: note
A48: maggiore di 3 anni non portatori handicap | C48: =IF(SUM($C$4:$F$4)>3,$E$4,0) -> 0 | D48: =$M$1+200 -> 1000 | E48: =D48 -> 1000 | F48: 95.000 + 15.000 x (n.fig.tot. -1) - r.c. x --------------------------------------------- 95.000+15000 x (n.fig.tot. -1) | H48: =IF($C48>0,IF(UPPER($C$4)="SI",MAX($D48*$J48,INDEX($L$26:$L$36,MATCH($A$7,$K$26:$K$36,1)+1,1)),$D48*$J48*$I$4*$J$4/12),0) -> 0 | I48: =IF($H48<>0,$D48*$J48*($C48-1)*$I$4*$J$4/12,$D48*$J48*$C48*$I$4*$J$4/12) -> 0 | J48: =ROUND(IF(OR((95000+15000*($E$4-1)-$A$7)/(95000+15000*($E$4-1))<0,(95000+15000*($E$4-1)-$A$7)/(95000+15000*($E$4-1))=1),0,(95000+15000*($E$4-1)-$A$7)/(95000+15000*($E$4-1))),4) -> 0.5901 | K48: se il rapporto indicato è <= 0 oppure è = 1, allora detraz.spettante =0
A49: minore di 3 anni non portatori handicap | C49: =IF(SUM($C$4:$F$4)>3,$F$4,0) -> 0 | D49: =$N$1+200 -> 1100 | E49: =D49 -> 1100 | F49: 95.000 + 15.000 x (n.fig.tot. -1) - r.c. x --------------------------------------------- 95.000+15000 x (n.fig.tot. -1) | H49: =IF($C49>0,IF(UPPER($C$4)="SI",MAX($D49*$J49,INDEX($L$26:$L$36,MATCH($A$7,$K$26:$K$36,1)+1,1)),$D49*$J49*$I$4*$J$4/12),0) -> 0 | I49: =IF($C49>1,$D49*$J49*$C49*$I$4*$J$4/12,0) -> 0 | J49: =J48 -> 0.5901
A50: maggiore di 3 anni e portatore di handicap | C50: =IF(SUM($C$4:$F$4)>3,$G$4,0) -> 0 | D50: =$M$1+$O$1+200 -> 1220 | E50: =D50 -> 1220 | F50: 95.000 + 15.000 x (n.fig.tot. -1) - r.c. x --------------------------------------------- 95.000+15000 x (n.fig.tot. -1) | H50: =IF($C50>0,IF(UPPER($C$4)="SI",MAX($D50*$J50,INDEX($L$26:$L$36,MATCH($A$7,$K$26:$K$36,1)+1,1)),$D50*$J50*$I$4*$J$4/12),0) -> 0 | I50: =IF($C50>1,$D50*$J50*$C50*$I$4*$J$4/12,0) -> 0 | J50: =J48 -> 0.5901
A51: minore di 3 anni e portatore di handicap | C51: =IF(SUM($C$4:$F$4)>3,$H$4,0) -> 0 | D51: =$D$41+$O$1+200 -> 1320 | E51: =D51 -> 1320 | F51: 95.000 + 15.000 x (n.fig.tot. -1) - r.c. x --------------------------------------------- 95.000+15.000 x (n.fig.tot. -1) | H51: =IF($C51>0,IF(UPPER($C$4)="SI",MAX($D51*$J51,INDEX($L$26:$L$36,MATCH($A$7,$K$26:$K$36,1)+1,1)),$D51*$J51*$I$4*$J$4/12),0) -> 0 | I51: =IF($C51>1,$D51*$J51*$C51*$I$4*$J$4/12,0) -> 0 | J51: =J48 -> 0.5901
A52: Totale figli | C52: =IF(SUM($C$4:$F$4)>3,SUM($C$4:$F$4),0) -> 0
A54: Altre persone
A55: detraz. teorica | B55: detrazione spettante per ciascun familiare | E55: note | K55: quoziente | L55: detrazione
A56: 750 | B56: =A56 -> 750 | C56: 80.000 - r.c. x -------------- 80.000 | E56: se il rapporto indicato è <= 0 oppure è = 1, allora detraz.spettante =0 | K56: =(80000-$A$7)/80000 -> 0.5901106398 | L56: =IF(AND(K56>0,K56<1),$B$56*INT(K56*10000)/10000,0)*$K$4 -> 0
A58: Detrazione per reddito da pensione (contribuenti che non hanno compiuto 75 anni)
A59: scaglioni di reddito | D59: 0 | E59: detraz. teorica | F59: detrazione effettiva | I59: redd.scag.+1 | J59: quoziente | K59: se il periodo di lavoro nell'anno è inferiore a 365 giorni, allora la detrazione è pari a 690,00 | L59: detrazione
A60: da | B60: 0 | C60: fino a | D60: 7500 | F60: 1725 | I60: =D60+1 -> 7501 | L60: =IF(AND($A$7>$B$60,$A$7<=$D$60),MAX($F60,690),0) -> 0
A61: oltre | B61: 7500 | C61: fino a | D61: 15000 | E61: 1255 | F61: =E61 -> 1255 | G61: 15.000 - r.c. + 470 x ---------------- 7.500 | I61: =D61+1 -> 15001 | J61: =(15000-$A$7)/7500 -> -2.372153175 | L61: =IF(AND($A$7>$B$61,$A$7<=$D$61),IF(AND(J61>0,J61<1),$E$61+470*INT(J61*10000)/10000,1),0) -> 0
A62: oltre | B62: 15000 | C62: fino a | D62: 55000 | E62: 1255 | F62: =E62 -> 1255 | G62: 55.000 - r.c. x -------------- 40.000 | I62: =D62+1 -> 55001 | J62: =(55000-$A$7)/40000 -> 0.5552212797 | L62: =IF(AND($A$7>$B$62,$A$7<=$D$62),IF(AND(J62>0,J62<1),$E$62*INT(J62*10000)/10000,1),0) -> 696.776

Sheet tabprev
A1: Aliq.pens. DPR 29.12.73 n° 1092 art. 44 | C1: Coefficienti rivalutazione retribuzioni per Quota B (ricavati dai dati rilevati dal sito www.inpdap.it) | Q1: =MAX($Q$2:$Q$22) -> 2012 | S1: base 1995=100 | T1: incrementi %
A2: anni di contrib. | B2: aliquota | D2: =E2-1 -> 2004 | E2: 2005 | F2: 2006 | G2: 2007 | H2: 2008 | I2: 2009 | J2: 2010 | K2: 2011 | L2: =$Q$1 -> 2012 | M2: =L2+1 -> 2013 | N2: =M2+1 -> 2014 | O2: =N2+1 -> 2015 | P2: =O2+1 -> 2016 | Q2: 1992 | R2: 100
A3: 0 | B3: 0 | C3: =$Q3 -> 1993 | D3: =IF(E3=1,1,E3/INDEX(E$3:E$22,MATCH(1,E$3:E$22,0)-1)) -> 1.322771593 | E3: 1.349051823 | F3: 1.372047025 | G3: 1.399422265 | H3: 1.423512476 | I3: 1.469502879 | J3: 1.479357965 | K3: =IF(L3=1,1,L3/INDEX(L$3:L$22,MATCH(1,L$3:L$22,0)-1)) -> 1.503448177 | L3: =IF($R3="",1,INDEX($R$2:$R$22,MATCH(MAX($Q$2:$Q$22),$Q$2:$Q$22,0))/$R3) -> 1.543963532 | M3: =IF(L3=1,1,L3*INDEX(L$3:L$22,MATCH(1,L$3:L$22,0)-1)) -> 1.585570706 | N3: =IF(M3=1,1,M3*INDEX(M$3:M$22,MATCH(1,M$3:M$22,0)-1)) -> 1.672178997 | O3: =IF(N3=1,1,N3*INDEX(N$3:N$22,MATCH(1,N$3:N$22,0)-1)) -> 1.859846347 | P3: =IF(O3=1,1,O3*INDEX(O$3:O$22,MATCH(1,O$3:O$22,0)-1)) -> 2.300730074 | Q3: 1993 | R3: 104.2
A4: 1 | B4: 0.0233 | C4: =C3+1 -> 1994 | D4: =IF(E4=1,1,E4/INDEX(E$3:E$22,MATCH(1,E$3:E$22,0)-1)) -> 1.272694367 | E4: 1.297979686 | F4: 1.32010434 | G4: 1.346443213 | H4: 1.369621422 | I4: 1.413870729 | J4: 1.423352724 | K4: =IF(L4=1,1,L4/INDEX(L$3:L$22,MATCH(1,L$3:L$22,0)-1)) -> 1.446530933 | L4: =IF($R4="",1,INDEX($R$2:$R$22,MATCH(MAX($Q$2:$Q$22),$Q$2:$Q$22,0))/$R4) -> 1.485512465 | M4: =IF(L4=1,1,L4*INDEX(L$3:L$22,MATCH(1,L$3:L$22,0)-1)) -> 1.525544484 | N4: 1.608873975 | O4: 1.789436651 | P4: 2.213629489 | Q4: 1994 | R4: 108.3
A5: 2 | B5: 0.0467 | C5: =C4+1 -> 1995 | D5: =IF(E5=1,1,E5/INDEX(E$3:E$22,MATCH(1,E$3:E$22,0)-1)) -> 1.208 | E5: 1.232 | F5: 1.253 | G5: 1.278 | H5: 1.3 | I5: 1.342 | J5: 1.351 | K5: 1.373 | L5: 1.41 | M5: 1.447997087 | N5: 1.527090723 | O5: 1.698474929 | P5: 2.10110494 | Q5: 1995 | R5: 114.1 | S5: 100
A6: 3 | B6: 0.07 | C6: 1996 | D6: =IF(E6=1,1,E6/INDEX(E$3:E$22,MATCH(1,E$3:E$22,0)-1)) -> 1.1626564 | E6: 1.185755534 | F6: 1.205967276 | G6: 1.230028874 | H6: 1.25120308 | I6: 1.291626564 | J6: 1.300288739 | K6: 1.321462945 | L6: 1.35707411 | M6: 1.393644934 | N6: 1.469769705 | O6: 1.634720817 | P6: 2.022237671 | Q6: 1996 | R6: 118.5499 | S6: =R6/R$5*100 -> 103.9 | T6: =ROUND((S6-S5)/S5%,1) -> 3.9 | U6: =R5*S6/S5 -> 118.5499
A7: 4 | B7: 0.0933 | C7: 1997 | D7: =IF(E7=1,1,E7/INDEX(E$3:E$22,MATCH(1,E$3:E$22,0)-1)) -> 1.142857143 | E7: 1.165562914 | F7: 1.185430464 | G7: 1.209082308 | H7: 1.229895932 | I7: 1.269631031 | J7: 1.278145695 | K7: 1.298959319 | L7: 1.333964049 | M7: 1.369912097 | N7: 1.444740514 | O7: 1.606882619 | P7: 1.987800322 | Q7: 1997 | R7: 120.6037 | S7: =R7/R$5*100 -> 105.7 | T7: =ROUND((S7-S6)/S6%,1) -> 1.7 | U7: 120.6037
A8: 5 | B8: 0.1167 | C8: 1998 | D8: =IF(E8=1,1,E8/INDEX(E$3:E$22,MATCH(1,E$3:E$22,0)-1)) -> 1.12267658 | E8: 1.144981413 | F8: 1.164498141 | G8: 1.187732342 | H8: 1.208178439 | I8: 1.247211896 | J8: 1.255576208 | K8: 1.276022305 | L8: 1.310408922 | M8: 1.3457222 | N8: 1.419229297 | O8: 1.578508298 | P8: 1.952699759 | Q8: 1998 | R8: 122.7716 | S8: 107.6 | T8: 1.8 | U8: 122.7716
A9: 6 | B9: 0.14 | C9: 1999 | D9: =IF(E9=1,1,E9/INDEX(E$3:E$22,MATCH(1,E$3:E$22,0)-1)) -> 1.105215005 | E9: 1.127172919 | F9: 1.146386093 | G9: 1.16925892 | H9: 1.189387008 | I9: 1.227813358 | J9: 1.236047575 | K9: 1.256175663 | L9: 1.290027447 | M9: 1.324791479 | N9: 1.397155282 | O9: 1.553956934 | P9: 1.922328399 | Q9: 1999 | R9: 124.7113 | S9: 109.3 | T9: 1.6 | U9: 124.7113
A10: 7 | B10: 0.1633 | C10: 2000 | D10: =IF(E10=1,1,E10/INDEX(E$3:E$22,MATCH(1,E$3:E$22,0)-1)) -> 1.077609277 | E10: 1.099018733 | F10: 1.117752007 | G10: 1.140053524 | H10: 1.159678858 | I10: 1.197145406 | J10: 1.205173952 | K10: 1.224799286 | L10: 1.257805531 | M10: 1.291701237 | N10: 1.362257559 | O10: 1.515142666 | P10: 1.87431306 | Q10: 2000 | R10: 127.9061 | S10: 112.1 | T10: 2.6 | U10: 127.9061
A11: 8 | B11: 0.1867 | C11: 2001 | D11: =IF(E11=1,1,E11/INDEX(E$3:E$22,MATCH(1,E$3:E$22,0)-1)) -> 1.049522155 | E11: 1.070373588 | F11: 1.088618593 | G11: 1.110338836 | H11: 1.12945265 | I11: 1.165942659 | J11: 1.173761946 | K11: 1.19287576 | L11: 1.22502172 | M11: 1.258033959 | N11: 1.32675128 | O11: 1.475651545 | P11: 1.825460417 | Q11: 2001 | R11: 131.3291 | S11: 115.1 | T11: 2.7 | U11: 131.3291
A12: 9 | B12: 0.21 | C12: 2002 | D12: =IF(E12=1,1,E12/INDEX(E$3:E$22,MATCH(1,E$3:E$22,0)-1)) -> 1.024597116 | E12: 1.04495335 | F12: 1.062765055 | G12: 1.083969466 | H12: 1.102629347 | I12: 1.138252757 | J12: 1.145886344 | K12: 1.164546226 | L12: 1.195928753 | M12: 1.228156986 | N12: 1.295242344 | O12: 1.440606386 | P12: 1.782107668 | Q12: 2002 | R12: 134.5239 | S12: 117.9 | T12: 2.4 | U12: 134.5239
A13: 10 | B13: 0.2333 | C13: 2003 | D13: =IF(E13=1,1,E13/INDEX(E$3:E$22,MATCH(1,E$3:E$22,0)-1)) -> 1 | E13: 1.01986755 | F13: 1.037251656 | G13: 1.05794702 | H13: 1.07615894 | I13: 1.110927152 | J13: 1.118377483 | K13: 1.136589404 | L13: 1.167218543 | M13: 1.198673085 | N13: 1.26414795 | O13: 1.406022292 | P13: 1.739325282 | Q13: 2003 | R13: 137.8328 | S13: 120.8 | T13: 2.5 | U13: 137.8328
A14: 11 | B14: 0.2567 | C14: 2004 | D14: =IF(E14=1,1,E14/INDEX(E$3:E$22,MATCH(1,E$3:E$22,0)-1)) -> 1 | E14: 1 | F14: 1.017045455 | G14: 1.037337662 | H14: 1.055194805 | I14: 1.089285714 | J14: 1.096590909 | K14: 1.114448052 | L14: 1.144480519 | M14: 1.175322311 | N14: 1.239521691 | O14: 1.378632247 | P14: 1.705442322 | Q14: 2004 | R14: 140.5712 | S14: 123.2 | T14: 2 | U14: 140.5712
A15: 12 | B15: 0.28 | C15: 2005 | D15: =IF(E15=1,1,E15/INDEX(E$3:E$22,MATCH(1,E$3:E$22,0)-1)) -> 1 | E15: 1 | F15: 1 | G15: 1.019952115 | H15: 1.037509976 | I15: 1.071029529 | J15: 1.078212291 | K15: 1.095770152 | L15: 1.125299282 | M15: 1.155624171 | N15: 1.218747584 | O15: 1.355526679 | P15: 1.67685949 | Q15: 2005 | R15: 142.9673 | S15: 125.3 | T15: 1.7 | U15: 142.9673
A16: 13 | B16: 0.3033 | C16: 2006 | D16: =IF(E16=1,1,E16/INDEX(E$3:E$22,MATCH(1,E$3:E$22,0)-1)) -> 1 | E16: 1 | F16: 1 | G16: 1 | H16: 1.017214397 | I16: 1.050078247 | J16: 1.057120501 | K16: 1.074334898 | L16: 1.103286385 | M16: 1.133018065 | N16: 1.194906669 | O16: 1.329010116 | P16: 1.644057074 | Q16: 2006 | R16: 145.8198 | S16: 127.8 | T16: 2 | U16: 145.8198
A17: 14 | B17: 0.3267 | C17: 2007 | D17: =IF(E17=1,1,E17/INDEX(E$3:E$22,MATCH(1,E$3:E$22,0)-1)) -> 1 | E17: 1 | F17: 1 | G17: 1 | H17: 1 | I17: 1.032307692 | J17: 1.039230769 | K17: 1.056153846 | L17: 1.084615385 | M17: 1.113843913 | N17: 1.174685172 | O17: 1.306519176 | P17: 1.61623457 | Q17: 2007 | R17: 148.33 | S17: 130 | T17: 1.7 | U17: 148.33
A18: 15 | B18: 0.35 | C18: 2008 | D18: =IF(E18=1,1,E18/INDEX(E$3:E$22,MATCH(1,E$3:E$22,0)-1)) -> 1 | E18: 1 | F18: 1 | G18: 1 | H18: 1 | I18: 1 | J18: 1.006706408 | K18: 1.023099851 | L18: 1.050670641 | M18: 1.078984416 | N18: 1.137921552 | O18: 1.265629604 | P18: 1.565651968 | Q18: 2008 | R18: 153.1222 | S18: 134.2 | T18: 3.2 | U18: 153.1222
A19: 16 | B19: 0.368 | C19: 2009 | D19: =IF(E19=1,1,E19/INDEX(E$3:E$22,MATCH(1,E$3:E$22,0)-1)) -> 1 | E19: 1 | F19: 1 | G19: 1 | H19: 1 | I19: 1 | J19: 1 | K19: 1.016284234 | L19: 1.043671355 | M19: 1.071796511 | N19: 1.130341024 | O19: 1.257198319 | P19: 1.555222014 | Q19: 2009 | R19: 154.1491 | S19: 135.1 | T19: 0.7 | U19: =R18*S19/S18 -> 154.1491
A20: 17 | B20: 0.386 | C20: 2010 | D20: =IF(E20=1,1,E20/INDEX(E$3:E$22,MATCH(1,E$3:E$22,0)-1)) -> 1 | E20: 1 | F20: 1 | G20: 1 | H20: 1 | I20: 1 | J20: 1 | K20: 1 | L20: 1.026948288 | M20: 1.054622787 | N20: 1.112229223 | O20: 1.237053845 | P20: 1.530302214 | Q20: 2010 | R20: 156.6593 | S20: 137.3 | T20: 1.6 | U20: =R19*S20/S19 -> 156.6593
A21: 18 | B21: 0.404 | C21: 2011 | D21: =IF(E21=1,1,E21/INDEX(E$3:E$22,MATCH(1,E$3:E$22,0)-1)) -> 1 | E21: 1 | F21: 1 | G21: 1 | H21: 1 | I21: 1 | J21: 1 | K21: 1 | L21: 1 | M21: 1 | N21: 1 | O21: 1 | P21: 1 | Q21: 2011 | R21: 160.881 | S21: =S20*(1+T21%) -> 141.0071 | T21: 2.7 | U21: =R20*S21/S20 -> 160.8891011
A22: 19 | B22: 0.422 | C22: 2012 | D22: =IF(E22=1,1,E22/INDEX(E$3:E$22,MATCH(1,E$3:E$22,0)-1)) -> 1 | E22: 1 | F22: 1 | G22: 1 | H22: 1 | I22: 1 | J22: 1 | K22: 1 | L22: 1 | M22: 1 | N22: 1 | O22: 1 | P22: 1 | Q22: 2012 | R22: 160.881
A23: 20 | B23: 0.44
A24: 21 | B24: 0.458
A25: 22 | B25: 0.476
A26: 23 | B26: 0.494
A27: 24 | B27: 0.512
A28: 25 | B28: 0.53
A29: 26 | B29: 0.548
A30: 27 | B30: 0.566
A31: 28 | B31: 0.584
A32: 29 | B32: 0.602
A33: 30 | B33: 0.62
A34: 31 | B34: 0.638
A35: 32 | B35: 0.656
A36: 33 | B36: 0.674
A37: 34 | B37: 0.692
A38: 35 | B38: 0.71
A39: 36 | B39: 0.728
A40: 37 | B40: 0.746
A41: 38 | B41: 0.764
A42: 39 | B42: 0.782
A43: 40 | B43: 0.8
